Department Family,Entity,Date,Expense type,Expense area,Supplier,Transaction number,Amount
DBT,ACAS,03/11/2023,RATES,F&G,GOVERNMENT PROPERTY AGENCY,PINV2392,11707.11
DBT,ACAS,27/02/2024,FACILITIES MANAGEMENT,F&G,GOVERNMENT PROPERTY AGENCY,PINV2393,84071.84
DBT,ACAS,27/02/2024,PROFESSIONAL FEES,F&G,GOVERNMENT PROPERTY AGENCY,PINV2394,6956.71
DBT,ACAS,27/02/2024,RATES,F&G,GOVERNMENT PROPERTY AGENCY,PINV2394,20755.84
DBT,ACAS,27/02/2024,SERVICE CHARGES,F&G,GOVERNMENT PROPERTY AGENCY,PINV2394,20875.89
DBT,ACAS,27/02/2024,Lease Liability,F&G,GOVERNMENT PROPERTY AGENCY,PINV2394,50140.53
DBT,ACAS,27/02/2024,FACILITIES MANAGEMENT,F&G,GOVERNMENT PROPERTY AGENCY,PINV2394,29949.17
DBT,ACAS,29/02/2024,RECOGNITION PAYMENTS,CENTRE,EDENRED (UK GROUP ) LTD,PINV2395,12875
DBT,ACAS,06/11/2023,PROFESSIONAL FEES,F&G,GOVERNMENT PROPERTY AGENCY,PINV2397,4506
DBT,ACAS,06/11/2023,SERVICE CHARGES,F&G,GOVERNMENT PROPERTY AGENCY,PINV2397,14679.33
DBT,ACAS,06/11/2023,RATES,F&G,GOVERNMENT PROPERTY AGENCY,PINV2397,3902.37
DBT,ACAS,06/11/2023,CAR PARK RENTS,F&G,GOVERNMENT PROPERTY AGENCY,PINV2397,1200
DBT,ACAS,06/11/2023,Lease Liability,F&G,GOVERNMENT PROPERTY AGENCY,PINV2397,24747.51
DBT,ACAS,04/03/2024,REFUNDS,ADVICE,CITY OF BRISTOL COLLEGE,PINV2398,450
DBT,ACAS,27/12/2023,MAINTENANCE (TFM2),F&G,GOVERNMENT PROPERTY AGENCY,PINV2403,1220.67
DBT,ACAS,29/02/2024,PUBLICITY,STRATEGY,CISION,POIN2406,2743
DBT,ACAS,19/02/2024,OCCUPATIONAL HEALTH SERVICE,ODHR,TP HEALTH LTD,POIN2407,1699.2
DBT,ACAS,29/02/2024,OCCUPATIONAL HEALTH SERVICE,ODHR,TP HEALTH LTD,POIN2408,778.8
DBT,ACAS,20/02/2024,EXTERNAL LEARNING,ODHR,PROFESSIONAL DEVELOPMENT GROUP�,PINV2408,478.08
DBT,ACAS,29/02/2024,SOFTWARE & LICENCES,DDAT,TISSKI LTD,PINV2409,1080
DBT,ACAS,31/01/2024,EXTERNAL LEARNING,ODHR,ALEXANDER MANN SOLUTIONS LTD,POIN2410,362.28
DBT,ACAS,31/01/2024,EXTERNAL LEARNING,ODHR,ALEXANDER MANN SOLUTIONS LTD,POIN2410,2173.7
DBT,ACAS,29/02/2024,CONTRACTOR OFF-PAYROLL IN IR35,DDAT,ALEXANDER MANN SOLUTIONS LTD,POIN2411,3695.58
DBT,ACAS,10/01/2024,EXTERNAL LEARNING,ODHR,EEF LTD T/A MAKE UK,POIN2412,1588.2
DBT,ACAS,29/02/2024,SOFTWARE & LICENCES,DDAT,GLASSTAP LIMITED,POIN2413,744
DBT,ACAS,29/02/2024,AGENCY STAFF,DISPUTE,ALEXANDER MANN SOLUTIONS LTD,POIN2414,656.66
DBT,ACAS,13/03/2024,REFUNDS,ADVICE,SEVENTEEN GROUP LIMITED,PINV2415,325
DBT,ACAS,21/02/2024,OCCUPATIONAL HEALTH SERVICE,F&G,FLEXIFORM BUSINESS FURNITURE LTD,POIN2415,409.19
DBT,ACAS,13/03/2024,GPS ONLINE BOOKINGS,ADVICE,CROWELL & MORING U.K. LLP,PINV2416,325
DBT,ACAS,27/02/2024,OCCUPATIONAL HEALTH SERVICE,F&G,FLEXIFORM BUSINESS FURNITURE LTD,POIN2416,409.19
DBT,ACAS,27/02/2024,OCCUPATIONAL HEALTH SERVICE,F&G,FLEXIFORM BUSINESS FURNITURE LTD,POIN2417,409.19
DBT,ACAS,14/03/2024,PROFESSIONAL FEES,DDAT,AXIS 12 LIMITED,PINV2418,1464
DBT,ACAS,29/02/2024,PROFFESIONAL/SPECIALIST ADVICE,ADVICE,I F F RESEARCH,POIN2418,39551
DBT,ACAS,29/02/2024,PROFFESIONAL/SPECIALIST ADVICE,ADVICE,I F F RESEARCH,POIN2418,2952.76
DBT,ACAS,01/03/2024,OTHER RESEARCH,STRATEGY,UNIVERSITY OF WARWICK,POIN2419,18000
DBT,ACAS,15/03/2024,CHILDCARE VOUCHERS,F&G,EDENRED CHILDCARE VOUCHERS LTD,PINV2420,1549
DBT,ACAS,29/02/2024,OCCUPATIONAL HEALTH SERVICE,ODHR,TP HEALTH LTD,POIN2420,1196
DBT,ACAS,13/03/2024,LOSSES,ODHR,GOVERNMENT LEGAL DEPARTMENT,PINV2421,10000
DBT,ACAS,14/03/2024,RECOGNITION PAYMENTS,CENTRE,EDENRED (UK GROUP ) LTD,PINV2422,13360
DBT,ACAS,15/02/2024,OCCUPATIONAL HEALTH SERVICE,ODHR,TP HEALTH LTD,POIN2422,396
DBT,ACAS,18/03/2024,REFUNDS,ADVICE,ACCOR UK BUSINESS & LEISURE HOTELS LTD,PINV2423,732
DBT,ACAS,15/02/2024,OCCUPATIONAL HEALTH SERVICE,ODHR,TP HEALTH LTD,POIN2423,1584
DBT,ACAS,08/03/2024,COURIERS,ODHR,PURO VENTURES LTD,PINV2424,318
DBT,ACAS,29/02/2024,EXTERNAL LEARNING,ODHR,RICHARD SAUNDRY,POIN2424,3500
DBT,ACAS,29/02/2024,PROFESSIONAL FEES,DDAT,RISUAL LIMITED,POIN2425,22800
DBT,ACAS,29/02/2024,PROFESSIONAL FEES,DDAT,RISUAL LIMITED,POIN2425,6720
DBT,ACAS,29/02/2024,HOTEL EXPENSES,DDAT,CORPORATE TRAVEL MANAGEMENTLIMITED,PINV2426,407.7
DBT,ACAS,29/02/2024,PUBLIC TRANSPORT & PARKING,DISPUTE,CORPORATE TRAVEL MANAGEMENTLIMITED,PINV2426,99.4
DBT,ACAS,29/02/2024,PUBLIC TRANSPORT & PARKING,DISPUTE,CORPORATE TRAVEL MANAGEMENTLIMITED,PINV2426,181.2
DBT,ACAS,29/02/2024,PUBLIC TRANSPORT & PARKING,F&G,CORPORATE TRAVEL MANAGEMENTLIMITED,PINV2426,150
DBT,ACAS,29/02/2024,PUBLIC TRANSPORT & PARKING,ADVICE,CORPORATE TRAVEL MANAGEMENTLIMITED,PINV2426,30.4
DBT,ACAS,29/02/2024,PUBLIC TRANSPORT & PARKING,DISPUTE,CORPORATE TRAVEL MANAGEMENTLIMITED,PINV2426,106.5
DBT,ACAS,29/02/2024,PUBLIC TRANSPORT & PARKING,F&G,CORPORATE TRAVEL MANAGEMENTLIMITED,PINV2426,85.8
DBT,ACAS,29/02/2024,PUBLIC TRANSPORT & PARKING,F&G,CORPORATE TRAVEL MANAGEMENTLIMITED,PINV2426,156.8
DBT,ACAS,29/02/2024,PUBLIC TRANSPORT & PARKING,DISPUTE,CORPORATE TRAVEL MANAGEMENTLIMITED,PINV2426,106.5
DBT,ACAS,29/02/2024,PUBLIC TRANSPORT & PARKING,DISPUTE,CORPORATE TRAVEL MANAGEMENTLIMITED,PINV2426,39.7
DBT,ACAS,29/02/2024,PUBLIC TRANSPORT & PARKING,DISPUTE,CORPORATE TRAVEL MANAGEMENTLIMITED,PINV2426,39.7
DBT,ACAS,29/02/2024,PUBLIC TRANSPORT & PARKING,F&G,CORPORATE TRAVEL MANAGEMENTLIMITED,PINV2426,194.8
DBT,ACAS,29/02/2024,PUBLIC TRANSPORT & PARKING,DISPUTE,CORPORATE TRAVEL MANAGEMENTLIMITED,PINV2426,192.8
DBT,ACAS,29/02/2024,PUBLIC TRANSPORT & PARKING,DISPUTE,CORPORATE TRAVEL MANAGEMENTLIMITED,PINV2426,70
DBT,ACAS,29/02/2024,PUBLIC TRANSPORT & PARKING,DISPUTE,CORPORATE TRAVEL MANAGEMENTLIMITED,PINV2426,124.2
DBT,ACAS,29/02/2024,PUBLIC TRANSPORT & PARKING,F&G,CORPORATE TRAVEL MANAGEMENTLIMITED,PINV2426,28.9
DBT,ACAS,29/02/2024,PUBLIC TRANSPORT & PARKING,F&G,CORPORATE TRAVEL MANAGEMENTLIMITED,PINV2426,58.1
DBT,ACAS,29/02/2024,PUBLIC TRANSPORT & PARKING,STRATEGY,CORPORATE TRAVEL MANAGEMENTLIMITED,PINV2426,158
DBT,ACAS,29/02/2024,PUBLIC TRANSPORT & PARKING,STRATEGY,CORPORATE TRAVEL MANAGEMENTLIMITED,PINV2426,165
DBT,ACAS,29/02/2024,PUBLIC TRANSPORT & PARKING,DISPUTE,CORPORATE TRAVEL MANAGEMENTLIMITED,PINV2426,150.6
DBT,ACAS,29/02/2024,PUBLIC TRANSPORT & PARKING,DISPUTE,CORPORATE TRAVEL MANAGEMENTLIMITED,PINV2426,145
DBT,ACAS,29/02/2024,PUBLIC TRANSPORT & PARKING,STRATEGY,CORPORATE TRAVEL MANAGEMENTLIMITED,PINV2426,155.5
DBT,ACAS,29/02/2024,PUBLIC TRANSPORT & PARKING,ADVICE,CORPORATE TRAVEL MANAGEMENTLIMITED,PINV2426,64
DBT,ACAS,29/02/2024,PUBLIC TRANSPORT & PARKING,STRATEGY,CORPORATE TRAVEL MANAGEMENTLIMITED,PINV2426,47
DBT,ACAS,29/02/2024,PUBLIC TRANSPORT & PARKING,STRATEGY,CORPORATE TRAVEL MANAGEMENTLIMITED,PINV2426,128.7
DBT,ACAS,29/02/2024,PUBLIC TRANSPORT & PARKING,ADVICE,CORPORATE TRAVEL MANAGEMENTLIMITED,PINV2426,-39.2
DBT,ACAS,29/02/2024,PUBLIC TRANSPORT & PARKING,ADVICE,CORPORATE TRAVEL MANAGEMENTLIMITED,PINV2426,172.4
DBT,ACAS,29/02/2024,HOTEL EXPENSES,DISPUTE,CORPORATE TRAVEL MANAGEMENTLIMITED,PINV2426,129
DBT,ACAS,29/02/2024,PUBLIC TRANSPORT & PARKING,ODHR,CORPORATE TRAVEL MANAGEMENTLIMITED,PINV2426,273.8
DBT,ACAS,29/02/2024,PUBLIC TRANSPORT & PARKING,DISPUTE,CORPORATE TRAVEL MANAGEMENTLIMITED,PINV2426,71.1
DBT,ACAS,29/02/2024,PUBLIC TRANSPORT & PARKING,ADVICE,CORPORATE TRAVEL MANAGEMENTLIMITED,PINV2426,105.3
DBT,ACAS,29/02/2024,PUBLIC TRANSPORT & PARKING,F&G,CORPORATE TRAVEL MANAGEMENTLIMITED,PINV2426,229.7
DBT,ACAS,29/02/2024,PUBLIC TRANSPORT & PARKING,STRATEGY,CORPORATE TRAVEL MANAGEMENTLIMITED,PINV2426,317
DBT,ACAS,29/02/2024,PUBLIC TRANSPORT & PARKING,F&G,CORPORATE TRAVEL MANAGEMENTLIMITED,PINV2426,103
DBT,ACAS,29/02/2024,PUBLIC TRANSPORT & PARKING,ODHR,CORPORATE TRAVEL MANAGEMENTLIMITED,PINV2426,22
DBT,ACAS,29/02/2024,PUBLIC TRANSPORT & PARKING,DISPUTE,CORPORATE TRAVEL MANAGEMENTLIMITED,PINV2426,105
DBT,ACAS,29/02/2024,PUBLIC TRANSPORT & PARKING,ODHR,CORPORATE TRAVEL MANAGEMENTLIMITED,PINV2426,286.4
DBT,ACAS,29/02/2024,PUBLIC TRANSPORT & PARKING,ADVICE,CORPORATE TRAVEL MANAGEMENTLIMITED,PINV2426,115.3
DBT,ACAS,29/02/2024,PUBLIC TRANSPORT & PARKING,DDAT,CORPORATE TRAVEL MANAGEMENTLIMITED,PINV2426,190.4
DBT,ACAS,29/02/2024,PUBLIC TRANSPORT & PARKING,DDAT,CORPORATE TRAVEL MANAGEMENTLIMITED,PINV2426,199.2
DBT,ACAS,29/02/2024,HOTEL EXPENSES,ADVICE,CORPORATE TRAVEL MANAGEMENTLIMITED,PINV2426,102.12
DBT,ACAS,29/02/2024,PUBLIC TRANSPORT & PARKING,STRATEGY,CORPORATE TRAVEL MANAGEMENTLIMITED,PINV2426,16.15
DBT,ACAS,29/02/2024,PUBLIC TRANSPORT & PARKING,DDAT,CORPORATE TRAVEL MANAGEMENTLIMITED,PINV2426,75
DBT,ACAS,29/02/2024,PUBLIC TRANSPORT & PARKING,STRATEGY,CORPORATE TRAVEL MANAGEMENTLIMITED,PINV2426,379.55
DBT,ACAS,29/02/2024,HOTEL EXPENSES,ADVICE,CORPORATE TRAVEL MANAGEMENTLIMITED,PINV2426,107.96
DBT,ACAS,29/02/2024,PUBLIC TRANSPORT & PARKING,DISPUTE,CORPORATE TRAVEL MANAGEMENTLIMITED,PINV2426,40.8
DBT,ACAS,29/02/2024,PUBLIC TRANSPORT & PARKING,ADVICE,CORPORATE TRAVEL MANAGEMENTLIMITED,PINV2426,115.3
DBT,ACAS,29/02/2024,PUBLIC TRANSPORT & PARKING,STRATEGY,CORPORATE TRAVEL MANAGEMENTLIMITED,PINV2426,245
DBT,ACAS,29/02/2024,PUBLIC TRANSPORT & PARKING,STRATEGY,CORPORATE TRAVEL MANAGEMENTLIMITED,PINV2426,160.3
DBT,ACAS,29/02/2024,HOTEL EXPENSES,ADVICE,CORPORATE TRAVEL MANAGEMENTLIMITED,PINV2426,215.92
DBT,ACAS,29/02/2024,PUBLIC TRANSPORT & PARKING,DISPUTE,CORPORATE TRAVEL MANAGEMENTLIMITED,PINV2426,64.3
DBT,ACAS,29/02/2024,PUBLIC TRANSPORT & PARKING,ODHR,CORPORATE TRAVEL MANAGEMENTLIMITED,PINV2426,22
DBT,ACAS,29/02/2024,HOTEL EXPENSES,DDAT,CORPORATE TRAVEL MANAGEMENTLIMITED,PINV2426,93.85
DBT,ACAS,29/02/2024,HOTEL EXPENSES,STRATEGY,CORPORATE TRAVEL MANAGEMENTLIMITED,PINV2426,413.58
DBT,ACAS,29/02/2024,PUBLIC TRANSPORT & PARKING,STRATEGY,CORPORATE TRAVEL MANAGEMENTLIMITED,PINV2426,143.7
DBT,ACAS,29/02/2024,PUBLIC TRANSPORT & PARKING,STRATEGY,CORPORATE TRAVEL MANAGEMENTLIMITED,PINV2426,15.2
DBT,ACAS,29/02/2024,HOTEL EXPENSES,STRATEGY,CORPORATE TRAVEL MANAGEMENTLIMITED,PINV2426,245.3
DBT,ACAS,29/02/2024,HOTEL EXPENSES,STRATEGY,CORPORATE TRAVEL MANAGEMENTLIMITED,PINV2426,413.58
DBT,ACAS,29/02/2024,PUBLIC TRANSPORT & PARKING,STRATEGY,CORPORATE TRAVEL MANAGEMENTLIMITED,PINV2426,238.7
DBT,ACAS,29/02/2024,PUBLIC TRANSPORT & PARKING,ADVICE,CORPORATE TRAVEL MANAGEMENTLIMITED,PINV2426,39.1
DBT,ACAS,29/02/2024,PUBLIC TRANSPORT & PARKING,F&G,CORPORATE TRAVEL MANAGEMENTLIMITED,PINV2426,99.4
DBT,ACAS,29/02/2024,PUBLIC TRANSPORT & PARKING,F&G,CORPORATE TRAVEL MANAGEMENTLIMITED,PINV2426,97.3
DBT,ACAS,29/02/2024,PUBLIC TRANSPORT & PARKING,ADVICE,CORPORATE TRAVEL MANAGEMENTLIMITED,PINV2426,46
DBT,ACAS,29/02/2024,PUBLIC TRANSPORT & PARKING,DISPUTE,CORPORATE TRAVEL MANAGEMENTLIMITED,PINV2426,-24.9
DBT,ACAS,29/02/2024,PUBLIC TRANSPORT & PARKING,DISPUTE,CORPORATE TRAVEL MANAGEMENTLIMITED,PINV2426,73.3
DBT,ACAS,29/02/2024,PUBLIC TRANSPORT & PARKING,ADVICE,CORPORATE TRAVEL MANAGEMENTLIMITED,PINV2426,-337.6
DBT,ACAS,29/02/2024,PUBLIC TRANSPORT & PARKING,DDAT,CORPORATE TRAVEL MANAGEMENTLIMITED,PINV2426,165.4
DBT,ACAS,29/02/2024,PUBLIC TRANSPORT & PARKING,F&G,CORPORATE TRAVEL MANAGEMENTLIMITED,PINV2426,171.35
DBT,ACAS,29/02/2024,PUBLIC TRANSPORT & PARKING,DDAT,CORPORATE TRAVEL MANAGEMENTLIMITED,PINV2426,167.2
DBT,ACAS,29/02/2024,PUBLIC TRANSPORT & PARKING,F&G,CORPORATE TRAVEL MANAGEMENTLIMITED,PINV2426,162.05
DBT,ACAS,29/02/2024,PUBLIC TRANSPORT & PARKING,STRATEGY,CORPORATE TRAVEL MANAGEMENTLIMITED,PINV2426,72.7
DBT,ACAS,29/02/2024,PUBLIC TRANSPORT & PARKING,DDAT,CORPORATE TRAVEL MANAGEMENTLIMITED,PINV2426,76
DBT,ACAS,29/02/2024,PUBLIC TRANSPORT & PARKING,DDAT,CORPORATE TRAVEL MANAGEMENTLIMITED,PINV2426,140
DBT,ACAS,29/02/2024,PUBLIC TRANSPORT & PARKING,DDAT,CORPORATE TRAVEL MANAGEMENTLIMITED,PINV2426,40.3
DBT,ACAS,29/02/2024,PUBLIC TRANSPORT & PARKING,DDAT,CORPORATE TRAVEL MANAGEMENTLIMITED,PINV2426,14.4
DBT,ACAS,29/02/2024,HOTEL EXPENSES,ADVICE,CORPORATE TRAVEL MANAGEMENTLIMITED,PINV2426,127.48
DBT,ACAS,29/02/2024,HOTEL EXPENSES,ADVICE,CORPORATE TRAVEL MANAGEMENTLIMITED,PINV2426,127.48
DBT,ACAS,29/02/2024,PUBLIC TRANSPORT & PARKING,F&G,CORPORATE TRAVEL MANAGEMENTLIMITED,PINV2426,54
DBT,ACAS,29/02/2024,PUBLIC TRANSPORT & PARKING,DISPUTE,CORPORATE TRAVEL MANAGEMENTLIMITED,PINV2426,44.6
DBT,ACAS,29/02/2024,PUBLIC TRANSPORT & PARKING,DISPUTE,CORPORATE TRAVEL MANAGEMENTLIMITED,PINV2426,88.9
DBT,ACAS,29/02/2024,PUBLIC TRANSPORT & PARKING,DISPUTE,CORPORATE TRAVEL MANAGEMENTLIMITED,PINV2426,102.3
DBT,ACAS,29/02/2024,PUBLIC TRANSPORT & PARKING,DISPUTE,CORPORATE TRAVEL MANAGEMENTLIMITED,PINV2426,150.7
DBT,ACAS,29/02/2024,PUBLIC TRANSPORT & PARKING,DISPUTE,CORPORATE TRAVEL MANAGEMENTLIMITED,PINV2426,122.5
DBT,ACAS,29/02/2024,PUBLIC TRANSPORT & PARKING,STRATEGY,CORPORATE TRAVEL MANAGEMENTLIMITED,PINV2426,202
DBT,ACAS,29/02/2024,PUBLIC TRANSPORT & PARKING,STRATEGY,CORPORATE TRAVEL MANAGEMENTLIMITED,PINV2426,50
DBT,ACAS,29/02/2024,PUBLIC TRANSPORT & PARKING,DDAT,CORPORATE TRAVEL MANAGEMENTLIMITED,PINV2426,181.5
DBT,ACAS,29/02/2024,PUBLIC TRANSPORT & PARKING,F&G,CORPORATE TRAVEL MANAGEMENTLIMITED,PINV2426,72.7
DBT,ACAS,29/02/2024,HOTEL EXPENSES,DDAT,CORPORATE TRAVEL MANAGEMENTLIMITED,PINV2426,153
DBT,ACAS,29/02/2024,HOTEL EXPENSES,DISPUTE,CORPORATE TRAVEL MANAGEMENTLIMITED,PINV2426,90.09
DBT,ACAS,29/02/2024,HOTEL EXPENSES,DISPUTE,CORPORATE TRAVEL MANAGEMENTLIMITED,PINV2426,97.29
DBT,ACAS,29/02/2024,PUBLIC TRANSPORT & PARKING,DDAT,CORPORATE TRAVEL MANAGEMENTLIMITED,PINV2426,290.4
DBT,ACAS,29/02/2024,HOTEL EXPENSES,DISPUTE,CORPORATE TRAVEL MANAGEMENTLIMITED,PINV2426,80
DBT,ACAS,29/02/2024,HOTEL EXPENSES,DISPUTE,CORPORATE TRAVEL MANAGEMENTLIMITED,PINV2426,88
DBT,ACAS,29/02/2024,HOTEL EXPENSES,F&G,CORPORATE TRAVEL MANAGEMENTLIMITED,PINV2426,147
DBT,ACAS,29/02/2024,HOTEL EXPENSES,ODHR,CORPORATE TRAVEL MANAGEMENTLIMITED,PINV2426,147
DBT,ACAS,29/02/2024,HOTEL EXPENSES,STRATEGY,CORPORATE TRAVEL MANAGEMENTLIMITED,PINV2426,147
DBT,ACAS,29/02/2024,PUBLIC TRANSPORT & PARKING,ODHR,CORPORATE TRAVEL MANAGEMENTLIMITED,PINV2426,195.2
DBT,ACAS,29/02/2024,PUBLIC TRANSPORT & PARKING,ODHR,CORPORATE TRAVEL MANAGEMENTLIMITED,PINV2426,195.2
DBT,ACAS,29/02/2024,PUBLIC TRANSPORT & PARKING,DISPUTE,CORPORATE TRAVEL MANAGEMENTLIMITED,PINV2426,116.6
DBT,ACAS,29/02/2024,PUBLIC TRANSPORT & PARKING,F&G,CORPORATE TRAVEL MANAGEMENTLIMITED,PINV2426,25.05
DBT,ACAS,29/02/2024,PUBLIC TRANSPORT & PARKING,F&G,CORPORATE TRAVEL MANAGEMENTLIMITED,PINV2426,7.9
DBT,ACAS,29/02/2024,PUBLIC TRANSPORT & PARKING,F&G,CORPORATE TRAVEL MANAGEMENTLIMITED,PINV2426,23.1
DBT,ACAS,29/02/2024,PUBLIC TRANSPORT & PARKING,F&G,CORPORATE TRAVEL MANAGEMENTLIMITED,PINV2426,351.2
DBT,ACAS,29/02/2024,HOTEL EXPENSES,DDAT,CORPORATE TRAVEL MANAGEMENTLIMITED,PINV2426,127
DBT,ACAS,29/02/2024,HOTEL EXPENSES,DISPUTE,CORPORATE TRAVEL MANAGEMENTLIMITED,PINV2426,306
DBT,ACAS,29/02/2024,HOTEL EXPENSES,ADVICE,CORPORATE TRAVEL MANAGEMENTLIMITED,PINV2426,115.29
DBT,ACAS,29/02/2024,PUBLIC TRANSPORT & PARKING,F&G,CORPORATE TRAVEL MANAGEMENTLIMITED,PINV2426,222.6
DBT,ACAS,29/02/2024,PUBLIC TRANSPORT & PARKING,F&G,CORPORATE TRAVEL MANAGEMENTLIMITED,PINV2426,72.7
DBT,ACAS,29/02/2024,PUBLIC TRANSPORT & PARKING,ADVICE,CORPORATE TRAVEL MANAGEMENTLIMITED,PINV2426,70
DBT,ACAS,29/02/2024,PUBLIC TRANSPORT & PARKING,DISPUTE,CORPORATE TRAVEL MANAGEMENTLIMITED,PINV2426,23.5
DBT,ACAS,29/02/2024,PUBLIC TRANSPORT & PARKING,DISPUTE,CORPORATE TRAVEL MANAGEMENTLIMITED,PINV2426,43.1
DBT,ACAS,29/02/2024,PUBLIC TRANSPORT & PARKING,STRATEGY,CORPORATE TRAVEL MANAGEMENTLIMITED,PINV2426,200.5
DBT,ACAS,29/02/2024,PUBLIC TRANSPORT & PARKING,F&G,CORPORATE TRAVEL MANAGEMENTLIMITED,PINV2426,72.7
DBT,ACAS,29/02/2024,HOTEL EXPENSES,F&G,CORPORATE TRAVEL MANAGEMENTLIMITED,PINV2426,156.6
DBT,ACAS,29/02/2024,PUBLIC TRANSPORT & PARKING,ODHR,CORPORATE TRAVEL MANAGEMENTLIMITED,PINV2426,319.8
DBT,ACAS,29/02/2024,PUBLIC TRANSPORT & PARKING,DISPUTE,CORPORATE TRAVEL MANAGEMENTLIMITED,PINV2426,92
DBT,ACAS,29/02/2024,PUBLIC TRANSPORT & PARKING,F&G,CORPORATE TRAVEL MANAGEMENTLIMITED,PINV2426,24.2
DBT,ACAS,29/02/2024,PUBLIC TRANSPORT & PARKING,F&G,CORPORATE TRAVEL MANAGEMENTLIMITED,PINV2426,28
DBT,ACAS,29/02/2024,PUBLIC TRANSPORT & PARKING,F&G,CORPORATE TRAVEL MANAGEMENTLIMITED,PINV2426,24.2
DBT,ACAS,29/02/2024,PUBLIC TRANSPORT & PARKING,DISPUTE,CORPORATE TRAVEL MANAGEMENTLIMITED,PINV2426,42.8
DBT,ACAS,29/02/2024,PUBLIC TRANSPORT & PARKING,DISPUTE,CORPORATE TRAVEL MANAGEMENTLIMITED,PINV2426,42.8
DBT,ACAS,29/02/2024,PUBLIC TRANSPORT & PARKING,DISPUTE,CORPORATE TRAVEL MANAGEMENTLIMITED,PINV2426,168.2
DBT,ACAS,29/02/2024,PUBLIC TRANSPORT & PARKING,STRATEGY,CORPORATE TRAVEL MANAGEMENTLIMITED,PINV2426,119.7
DBT,ACAS,29/02/2024,PUBLIC TRANSPORT & PARKING,STRATEGY,CORPORATE TRAVEL MANAGEMENTLIMITED,PINV2426,223.75
DBT,ACAS,29/02/2024,PUBLIC TRANSPORT & PARKING,F&G,CORPORATE TRAVEL MANAGEMENTLIMITED,PINV2426,147.4
DBT,ACAS,29/02/2024,PUBLIC TRANSPORT & PARKING,ADVICE,CORPORATE TRAVEL MANAGEMENTLIMITED,PINV2426,113.4
DBT,ACAS,29/02/2024,PUBLIC TRANSPORT & PARKING,ADVICE,CORPORATE TRAVEL MANAGEMENTLIMITED,PINV2426,80.4
DBT,ACAS,29/02/2024,PUBLIC TRANSPORT & PARKING,ADVICE,CORPORATE TRAVEL MANAGEMENTLIMITED,PINV2426,46.2
DBT,ACAS,29/02/2024,PUBLIC TRANSPORT & PARKING,DISPUTE,CORPORATE TRAVEL MANAGEMENTLIMITED,PINV2426,222.6
DBT,ACAS,29/02/2024,PUBLIC TRANSPORT & PARKING,ADVICE,CORPORATE TRAVEL MANAGEMENTLIMITED,PINV2426,51
DBT,ACAS,29/02/2024,PUBLIC TRANSPORT & PARKING,ADVICE,CORPORATE TRAVEL MANAGEMENTLIMITED,PINV2426,48.4
DBT,ACAS,29/02/2024,PUBLIC TRANSPORT & PARKING,ADVICE,CORPORATE TRAVEL MANAGEMENTLIMITED,PINV2426,71.5
DBT,ACAS,29/02/2024,PUBLIC TRANSPORT & PARKING,ADVICE,CORPORATE TRAVEL MANAGEMENTLIMITED,PINV2426,111
DBT,ACAS,29/02/2024,PUBLIC TRANSPORT & PARKING,DDAT,CORPORATE TRAVEL MANAGEMENTLIMITED,PINV2426,131
DBT,ACAS,29/02/2024,PUBLIC TRANSPORT & PARKING,F&G,CORPORATE TRAVEL MANAGEMENTLIMITED,PINV2426,31.7
DBT,ACAS,29/02/2024,PUBLIC TRANSPORT & PARKING,F&G,CORPORATE TRAVEL MANAGEMENTLIMITED,PINV2426,152.3
DBT,ACAS,29/02/2024,HOTEL EXPENSES,ADVICE,CORPORATE TRAVEL MANAGEMENTLIMITED,PINV2426,308.88
DBT,ACAS,29/02/2024,HOTEL EXPENSES,ADVICE,CORPORATE TRAVEL MANAGEMENTLIMITED,PINV2426,294.67
DBT,ACAS,29/02/2024,PUBLIC TRANSPORT & PARKING,ODHR,CORPORATE TRAVEL MANAGEMENTLIMITED,PINV2426,26.5
DBT,ACAS,29/02/2024,PUBLIC TRANSPORT & PARKING,DISPUTE,CORPORATE TRAVEL MANAGEMENTLIMITED,PINV2426,39.7
DBT,ACAS,29/02/2024,PUBLIC TRANSPORT & PARKING,DISPUTE,CORPORATE TRAVEL MANAGEMENTLIMITED,PINV2426,39.7
DBT,ACAS,29/02/2024,PUBLIC TRANSPORT & PARKING,ADVICE,CORPORATE TRAVEL MANAGEMENTLIMITED,PINV2426,30.4
DBT,ACAS,29/02/2024,PUBLIC TRANSPORT & PARKING,DISPUTE,CORPORATE TRAVEL MANAGEMENTLIMITED,PINV2426,106.5
DBT,ACAS,29/02/2024,PUBLIC TRANSPORT & PARKING,DISPUTE,CORPORATE TRAVEL MANAGEMENTLIMITED,PINV2426,106.5
DBT,ACAS,29/02/2024,PUBLIC TRANSPORT & PARKING,F&G,CORPORATE TRAVEL MANAGEMENTLIMITED,PINV2426,94.4
DBT,ACAS,29/02/2024,PUBLIC TRANSPORT & PARKING,F&G,CORPORATE TRAVEL MANAGEMENTLIMITED,PINV2426,177.8
DBT,ACAS,29/02/2024,PUBLIC TRANSPORT & PARKING,F&G,CORPORATE TRAVEL MANAGEMENTLIMITED,PINV2426,43.1
DBT,ACAS,29/02/2024,PUBLIC TRANSPORT & PARKING,F&G,CORPORATE TRAVEL MANAGEMENTLIMITED,PINV2426,98.4
DBT,ACAS,29/02/2024,PUBLIC TRANSPORT & PARKING,DDAT,CORPORATE TRAVEL MANAGEMENTLIMITED,PINV2426,-253.8
DBT,ACAS,29/02/2024,HOTEL EXPENSES,F&G,CORPORATE TRAVEL MANAGEMENTLIMITED,PINV2426,97
DBT,ACAS,29/02/2024,HOTEL EXPENSES,F&G,CORPORATE TRAVEL MANAGEMENTLIMITED,PINV2426,153
DBT,ACAS,29/02/2024,PUBLIC TRANSPORT & PARKING,DDAT,CORPORATE TRAVEL MANAGEMENTLIMITED,PINV2426,90
DBT,ACAS,29/02/2024,PUBLIC TRANSPORT & PARKING,ODHR,CORPORATE TRAVEL MANAGEMENTLIMITED,PINV2426,381.2
DBT,ACAS,29/02/2024,PUBLIC TRANSPORT & PARKING,ODHR,CORPORATE TRAVEL MANAGEMENTLIMITED,PINV2426,252.2
DBT,ACAS,29/02/2024,PUBLIC TRANSPORT & PARKING,ODHR,CORPORATE TRAVEL MANAGEMENTLIMITED,PINV2426,186.3
DBT,ACAS,29/02/2024,PUBLIC TRANSPORT & PARKING,DISPUTE,CORPORATE TRAVEL MANAGEMENTLIMITED,PINV2426,120.6
DBT,ACAS,29/02/2024,PUBLIC TRANSPORT & PARKING,ADVICE,CORPORATE TRAVEL MANAGEMENTLIMITED,PINV2426,-57.1
DBT,ACAS,29/02/2024,PUBLIC TRANSPORT & PARKING,ODHR,CORPORATE TRAVEL MANAGEMENTLIMITED,PINV2426,71
DBT,ACAS,29/02/2024,PUBLIC TRANSPORT & PARKING,DISPUTE,CORPORATE TRAVEL MANAGEMENTLIMITED,PINV2426,-71.5
DBT,ACAS,29/02/2024,PUBLIC TRANSPORT & PARKING,DISPUTE,CORPORATE TRAVEL MANAGEMENTLIMITED,PINV2426,87
DBT,ACAS,29/02/2024,PUBLIC TRANSPORT & PARKING,ADVICE,CORPORATE TRAVEL MANAGEMENTLIMITED,PINV2426,-39.2
DBT,ACAS,29/02/2024,PUBLIC TRANSPORT & PARKING,STRATEGY,CORPORATE TRAVEL MANAGEMENTLIMITED,PINV2426,-74
DBT,ACAS,29/02/2024,PUBLIC TRANSPORT & PARKING,ODHR,CORPORATE TRAVEL MANAGEMENTLIMITED,PINV2426,178.4
DBT,ACAS,29/02/2024,PUBLIC TRANSPORT & PARKING,STRATEGY,CORPORATE TRAVEL MANAGEMENTLIMITED,PINV2426,-69.7
DBT,ACAS,29/02/2024,HOTEL EXPENSES,ADVICE,CORPORATE TRAVEL MANAGEMENTLIMITED,PINV2426,162
DBT,ACAS,29/02/2024,PUBLIC TRANSPORT & PARKING,DDAT,CORPORATE TRAVEL MANAGEMENTLIMITED,PINV2426,258.8
DBT,ACAS,29/02/2024,PUBLIC TRANSPORT & PARKING,ODHR,CORPORATE TRAVEL MANAGEMENTLIMITED,PINV2426,384.6
DBT,ACAS,29/02/2024,PUBLIC TRANSPORT & PARKING,ODHR,CORPORATE TRAVEL MANAGEMENTLIMITED,PINV2426,255.6
DBT,ACAS,29/02/2024,PUBLIC TRANSPORT & PARKING,DISPUTE,CORPORATE TRAVEL MANAGEMENTLIMITED,PINV2426,15.7
DBT,ACAS,29/02/2024,PUBLIC TRANSPORT & PARKING,DISPUTE,CORPORATE TRAVEL MANAGEMENTLIMITED,PINV2426,91.5
DBT,ACAS,29/02/2024,PUBLIC TRANSPORT & PARKING,DISPUTE,CORPORATE TRAVEL MANAGEMENTLIMITED,PINV2426,-101.5
DBT,ACAS,29/02/2024,PUBLIC TRANSPORT & PARKING,DDAT,CORPORATE TRAVEL MANAGEMENTLIMITED,PINV2426,178.5
DBT,ACAS,29/02/2024,PUBLIC TRANSPORT & PARKING,F&G,CORPORATE TRAVEL MANAGEMENTLIMITED,PINV2426,229.7
DBT,ACAS,29/02/2024,PUBLIC TRANSPORT & PARKING,DDAT,CORPORATE TRAVEL MANAGEMENTLIMITED,PINV2426,178.5
DBT,ACAS,29/02/2024,PUBLIC TRANSPORT & PARKING,DISPUTE,CORPORATE TRAVEL MANAGEMENTLIMITED,PINV2426,171
DBT,ACAS,29/02/2024,PUBLIC TRANSPORT & PARKING,STRATEGY,CORPORATE TRAVEL MANAGEMENTLIMITED,PINV2426,134.1
DBT,ACAS,29/02/2024,PUBLIC TRANSPORT & PARKING,DDAT,CORPORATE TRAVEL MANAGEMENTLIMITED,PINV2426,171
DBT,ACAS,29/02/2024,PUBLIC TRANSPORT & PARKING,DISPUTE,CORPORATE TRAVEL MANAGEMENTLIMITED,PINV2426,138.5
DBT,ACAS,29/02/2024,PUBLIC TRANSPORT & PARKING,DDAT,CORPORATE TRAVEL MANAGEMENTLIMITED,PINV2426,140
DBT,ACAS,29/02/2024,HOTEL EXPENSES,ADVICE,CORPORATE TRAVEL MANAGEMENTLIMITED,PINV2426,65.32
DBT,ACAS,29/02/2024,PUBLIC TRANSPORT & PARKING,ODHR,CORPORATE TRAVEL MANAGEMENTLIMITED,PINV2426,206.4
DBT,ACAS,29/02/2024,PUBLIC TRANSPORT & PARKING,ADVICE,CORPORATE TRAVEL MANAGEMENTLIMITED,PINV2426,133.4
DBT,ACAS,29/02/2024,PUBLIC TRANSPORT & PARKING,F&G,CORPORATE TRAVEL MANAGEMENTLIMITED,PINV2426,157.2
DBT,ACAS,29/02/2024,PUBLIC TRANSPORT & PARKING,DDAT,CORPORATE TRAVEL MANAGEMENTLIMITED,PINV2426,80
DBT,ACAS,29/02/2024,PUBLIC TRANSPORT & PARKING,F&G,CORPORATE TRAVEL MANAGEMENTLIMITED,PINV2426,32.9
DBT,ACAS,29/02/2024,PUBLIC TRANSPORT & PARKING,STRATEGY,CORPORATE TRAVEL MANAGEMENTLIMITED,PINV2426,48.9
DBT,ACAS,29/02/2024,PUBLIC TRANSPORT & PARKING,F&G,CORPORATE TRAVEL MANAGEMENTLIMITED,PINV2426,53.15
DBT,ACAS,29/02/2024,PUBLIC TRANSPORT & PARKING,F&G,CORPORATE TRAVEL MANAGEMENTLIMITED,PINV2426,159.2
DBT,ACAS,29/02/2024,PUBLIC TRANSPORT & PARKING,F&G,CORPORATE TRAVEL MANAGEMENTLIMITED,PINV2426,30.7
DBT,ACAS,29/02/2024,HOTEL EXPENSES,ADVICE,CORPORATE TRAVEL MANAGEMENTLIMITED,PINV2426,90
DBT,ACAS,29/02/2024,HOTEL EXPENSES,STRATEGY,CORPORATE TRAVEL MANAGEMENTLIMITED,PINV2426,91
DBT,ACAS,29/02/2024,HOTEL EXPENSES,ODHR,CORPORATE TRAVEL MANAGEMENTLIMITED,PINV2426,86.4
DBT,ACAS,29/02/2024,PUBLIC TRANSPORT & PARKING,DISPUTE,CORPORATE TRAVEL MANAGEMENTLIMITED,PINV2426,-96.5
DBT,ACAS,29/02/2024,PUBLIC TRANSPORT & PARKING,DDAT,CORPORATE TRAVEL MANAGEMENTLIMITED,PINV2426,258.8
DBT,ACAS,29/02/2024,PUBLIC TRANSPORT & PARKING,DISPUTE,CORPORATE TRAVEL MANAGEMENTLIMITED,PINV2426,28.1
DBT,ACAS,29/02/2024,PUBLIC TRANSPORT & PARKING,DISPUTE,CORPORATE TRAVEL MANAGEMENTLIMITED,PINV2426,105.9
DBT,ACAS,29/02/2024,PUBLIC TRANSPORT & PARKING,DDAT,CORPORATE TRAVEL MANAGEMENTLIMITED,PINV2426,119
DBT,ACAS,29/02/2024,PUBLIC TRANSPORT & PARKING,DDAT,CORPORATE TRAVEL MANAGEMENTLIMITED,PINV2426,173.4
DBT,ACAS,29/02/2024,HOTEL EXPENSES,ADVICE,CORPORATE TRAVEL MANAGEMENTLIMITED,PINV2426,69.82
DBT,ACAS,29/02/2024,HOTEL EXPENSES,ADVICE,CORPORATE TRAVEL MANAGEMENTLIMITED,PINV2426,69.82
DBT,ACAS,29/02/2024,HOTEL EXPENSES,ADVICE,CORPORATE TRAVEL MANAGEMENTLIMITED,PINV2426,62.1
DBT,ACAS,29/02/2024,PUBLIC TRANSPORT & PARKING,F&G,CORPORATE TRAVEL MANAGEMENTLIMITED,PINV2426,218.1
DBT,ACAS,29/02/2024,PUBLIC TRANSPORT & PARKING,DDAT,CORPORATE TRAVEL MANAGEMENTLIMITED,PINV2426,298.9
DBT,ACAS,29/02/2024,PUBLIC TRANSPORT & PARKING,ADVICE,CORPORATE TRAVEL MANAGEMENTLIMITED,PINV2426,48.9
DBT,ACAS,29/02/2024,PUBLIC TRANSPORT & PARKING,STRATEGY,CORPORATE TRAVEL MANAGEMENTLIMITED,PINV2426,216.6
DBT,ACAS,29/02/2024,PUBLIC TRANSPORT & PARKING,DDAT,CORPORATE TRAVEL MANAGEMENTLIMITED,PINV2426,38.7
DBT,ACAS,29/02/2024,PUBLIC TRANSPORT & PARKING,ADVICE,CORPORATE TRAVEL MANAGEMENTLIMITED,PINV2426,274.2
DBT,ACAS,29/02/2024,PUBLIC TRANSPORT & PARKING,ADVICE,CORPORATE TRAVEL MANAGEMENTLIMITED,PINV2426,129.6
DBT,ACAS,29/02/2024,PUBLIC TRANSPORT & PARKING,DDAT,CORPORATE TRAVEL MANAGEMENTLIMITED,PINV2426,310.8
DBT,ACAS,29/02/2024,PUBLIC TRANSPORT & PARKING,DDAT,CORPORATE TRAVEL MANAGEMENTLIMITED,PINV2426,134.3
DBT,ACAS,29/02/2024,PUBLIC TRANSPORT & PARKING,STRATEGY,CORPORATE TRAVEL MANAGEMENTLIMITED,PINV2426,197
DBT,ACAS,29/02/2024,PUBLIC TRANSPORT & PARKING,DDAT,CORPORATE TRAVEL MANAGEMENTLIMITED,PINV2426,15.2
DBT,ACAS,29/02/2024,PUBLIC TRANSPORT & PARKING,DDAT,CORPORATE TRAVEL MANAGEMENTLIMITED,PINV2426,58.1
DBT,ACAS,29/02/2024,PUBLIC TRANSPORT & PARKING,DDAT,CORPORATE TRAVEL MANAGEMENTLIMITED,PINV2426,51.15
DBT,ACAS,29/02/2024,PUBLIC TRANSPORT & PARKING,DDAT,CORPORATE TRAVEL MANAGEMENTLIMITED,PINV2426,36.2
DBT,ACAS,29/02/2024,HOTEL EXPENSES,DISPUTE,CORPORATE TRAVEL MANAGEMENTLIMITED,PINV2426,49
DBT,ACAS,29/02/2024,PUBLIC TRANSPORT & PARKING,DDAT,CORPORATE TRAVEL MANAGEMENTLIMITED,PINV2426,209.1
DBT,ACAS,29/02/2024,PUBLIC TRANSPORT & PARKING,DISPUTE,CORPORATE TRAVEL MANAGEMENTLIMITED,PINV2426,222.6
DBT,ACAS,29/02/2024,PUBLIC TRANSPORT & PARKING,DISPUTE,CORPORATE TRAVEL MANAGEMENTLIMITED,PINV2426,71.6
DBT,ACAS,29/02/2024,PUBLIC TRANSPORT & PARKING,ADVICE,CORPORATE TRAVEL MANAGEMENTLIMITED,PINV2426,163.3
DBT,ACAS,29/02/2024,PUBLIC TRANSPORT & PARKING,F&G,CORPORATE TRAVEL MANAGEMENTLIMITED,PINV2426,178.2
DBT,ACAS,29/02/2024,PUBLIC TRANSPORT & PARKING,F&G,CORPORATE TRAVEL MANAGEMENTLIMITED,PINV2426,64.7
DBT,ACAS,29/02/2024,PUBLIC TRANSPORT & PARKING,STRATEGY,CORPORATE TRAVEL MANAGEMENTLIMITED,PINV2426,209
DBT,ACAS,29/02/2024,PUBLIC TRANSPORT & PARKING,ADVICE,CORPORATE TRAVEL MANAGEMENTLIMITED,PINV2426,163
DBT,ACAS,29/02/2024,PUBLIC TRANSPORT & PARKING,DISPUTE,CORPORATE TRAVEL MANAGEMENTLIMITED,PINV2426,-191.2
DBT,ACAS,29/02/2024,PUBLIC TRANSPORT & PARKING,DISPUTE,CORPORATE TRAVEL MANAGEMENTLIMITED,PINV2426,-186.2
DBT,ACAS,29/02/2024,PUBLIC TRANSPORT & PARKING,DISPUTE,CORPORATE TRAVEL MANAGEMENTLIMITED,PINV2426,24.9
DBT,ACAS,29/02/2024,PUBLIC TRANSPORT & PARKING,DISPUTE,CORPORATE TRAVEL MANAGEMENTLIMITED,PINV2426,24.9
DBT,ACAS,29/02/2024,PUBLIC TRANSPORT & PARKING,DISPUTE,CORPORATE TRAVEL MANAGEMENTLIMITED,PINV2426,22.3
DBT,ACAS,29/02/2024,PUBLIC TRANSPORT & PARKING,DISPUTE,CORPORATE TRAVEL MANAGEMENTLIMITED,PINV2426,24.3
DBT,ACAS,29/02/2024,PUBLIC TRANSPORT & PARKING,ADVICE,CORPORATE TRAVEL MANAGEMENTLIMITED,PINV2426,326.6
DBT,ACAS,29/02/2024,PUBLIC TRANSPORT & PARKING,DISPUTE,CORPORATE TRAVEL MANAGEMENTLIMITED,PINV2426,113.9
DBT,ACAS,29/02/2024,PUBLIC TRANSPORT & PARKING,DISPUTE,CORPORATE TRAVEL MANAGEMENTLIMITED,PINV2426,13.4
DBT,ACAS,29/02/2024,PUBLIC TRANSPORT & PARKING,DISPUTE,CORPORATE TRAVEL MANAGEMENTLIMITED,PINV2426,188.8
DBT,ACAS,29/02/2024,PUBLIC TRANSPORT & PARKING,DISPUTE,CORPORATE TRAVEL MANAGEMENTLIMITED,PINV2426,105
DBT,ACAS,29/02/2024,HOTEL EXPENSES,ODHR,CORPORATE TRAVEL MANAGEMENTLIMITED,PINV2426,276
DBT,ACAS,29/02/2024,HOTEL EXPENSES,DISPUTE,CORPORATE TRAVEL MANAGEMENTLIMITED,PINV2426,108.9
DBT,ACAS,29/02/2024,HOTEL EXPENSES,ODHR,CORPORATE TRAVEL MANAGEMENTLIMITED,PINV2426,99.45
DBT,ACAS,29/02/2024,HOTEL EXPENSES,DDAT,CORPORATE TRAVEL MANAGEMENTLIMITED,PINV2426,306
DBT,ACAS,29/02/2024,HOTEL EXPENSES,ODHR,CORPORATE TRAVEL MANAGEMENTLIMITED,PINV2426,93
DBT,ACAS,29/02/2024,HOTEL EXPENSES,ADVICE,CORPORATE TRAVEL MANAGEMENTLIMITED,PINV2426,57.16
DBT,ACAS,29/02/2024,HOTEL EXPENSES,ODHR,CORPORATE TRAVEL MANAGEMENTLIMITED,PINV2426,99.45
DBT,ACAS,29/02/2024,HOTEL EXPENSES,F&G,CORPORATE TRAVEL MANAGEMENTLIMITED,PINV2426,121
DBT,ACAS,29/02/2024,HOTEL EXPENSES,DDAT,CORPORATE TRAVEL MANAGEMENTLIMITED,PINV2426,306
DBT,ACAS,29/02/2024,HOTEL EXPENSES,DISPUTE,CORPORATE TRAVEL MANAGEMENTLIMITED,PINV2426,199.8
DBT,ACAS,29/02/2024,PUBLIC TRANSPORT & PARKING,ODHR,CORPORATE TRAVEL MANAGEMENTLIMITED,PINV2426,194.8
DBT,ACAS,29/02/2024,HOTEL EXPENSES,DDAT,CORPORATE TRAVEL MANAGEMENTLIMITED,PINV2426,306
DBT,ACAS,29/02/2024,HOTEL EXPENSES,F&G,CORPORATE TRAVEL MANAGEMENTLIMITED,PINV2426,80
DBT,ACAS,29/02/2024,PUBLIC TRANSPORT & PARKING,DISPUTE,CORPORATE TRAVEL MANAGEMENTLIMITED,PINV2426,82.95
DBT,ACAS,29/02/2024,PUBLIC TRANSPORT & PARKING,STRATEGY,CORPORATE TRAVEL MANAGEMENTLIMITED,PINV2426,237.5
DBT,ACAS,29/02/2024,PUBLIC TRANSPORT & PARKING,DISPUTE,CORPORATE TRAVEL MANAGEMENTLIMITED,PINV2426,70.2
DBT,ACAS,29/02/2024,PUBLIC TRANSPORT & PARKING,ODHR,CORPORATE TRAVEL MANAGEMENTLIMITED,PINV2426,369.4
DBT,ACAS,29/02/2024,PUBLIC TRANSPORT & PARKING,ADVICE,CORPORATE TRAVEL MANAGEMENTLIMITED,PINV2426,87.1
DBT,ACAS,29/02/2024,PUBLIC TRANSPORT & PARKING,F&G,CORPORATE TRAVEL MANAGEMENTLIMITED,PINV2426,105
DBT,ACAS,29/02/2024,PUBLIC TRANSPORT & PARKING,CAC,CORPORATE TRAVEL MANAGEMENTLIMITED,PINV2426,262.25
DBT,ACAS,29/02/2024,PUBLIC TRANSPORT & PARKING,DISPUTE,CORPORATE TRAVEL MANAGEMENTLIMITED,PINV2426,60.5
DBT,ACAS,29/02/2024,PUBLIC TRANSPORT & PARKING,DISPUTE,CORPORATE TRAVEL MANAGEMENTLIMITED,PINV2426,-37.8
DBT,ACAS,29/02/2024,HOTEL EXPENSES,ADVICE,CORPORATE TRAVEL MANAGEMENTLIMITED,PINV2426,175
DBT,ACAS,29/02/2024,PUBLIC TRANSPORT & PARKING,F&G,CORPORATE TRAVEL MANAGEMENTLIMITED,PINV2426,54
DBT,ACAS,29/02/2024,PUBLIC TRANSPORT & PARKING,DISPUTE,CORPORATE TRAVEL MANAGEMENTLIMITED,PINV2426,-37.8
DBT,ACAS,29/02/2024,PUBLIC TRANSPORT & PARKING,DISPUTE,CORPORATE TRAVEL MANAGEMENTLIMITED,PINV2426,42.8
DBT,ACAS,29/02/2024,PUBLIC TRANSPORT & PARKING,DDAT,CORPORATE TRAVEL MANAGEMENTLIMITED,PINV2426,260.8
DBT,ACAS,29/02/2024,PUBLIC TRANSPORT & PARKING,STRATEGY,CORPORATE TRAVEL MANAGEMENTLIMITED,PINV2426,99.5
DBT,ACAS,29/02/2024,PUBLIC TRANSPORT & PARKING,DISPUTE,CORPORATE TRAVEL MANAGEMENTLIMITED,PINV2426,216.6
DBT,ACAS,29/02/2024,PUBLIC TRANSPORT & PARKING,ADVICE,CORPORATE TRAVEL MANAGEMENTLIMITED,PINV2426,324
DBT,ACAS,29/02/2024,PUBLIC TRANSPORT & PARKING,ADVICE,CORPORATE TRAVEL MANAGEMENTLIMITED,PINV2426,50.4
DBT,ACAS,29/02/2024,PUBLIC TRANSPORT & PARKING,DISPUTE,CORPORATE TRAVEL MANAGEMENTLIMITED,PINV2426,66.9
DBT,ACAS,29/02/2024,PUBLIC TRANSPORT & PARKING,DISPUTE,CORPORATE TRAVEL MANAGEMENTLIMITED,PINV2426,37.7
DBT,ACAS,29/02/2024,PUBLIC TRANSPORT & PARKING,DISPUTE,CORPORATE TRAVEL MANAGEMENTLIMITED,PINV2426,284.4
DBT,ACAS,29/02/2024,PUBLIC TRANSPORT & PARKING,ADVICE,CORPORATE TRAVEL MANAGEMENTLIMITED,PINV2426,116.4
DBT,ACAS,29/02/2024,PUBLIC TRANSPORT & PARKING,F&G,CORPORATE TRAVEL MANAGEMENTLIMITED,PINV2426,105.8
DBT,ACAS,29/02/2024,PUBLIC TRANSPORT & PARKING,F&G,CORPORATE TRAVEL MANAGEMENTLIMITED,PINV2426,112.7
DBT,ACAS,29/02/2024,HOTEL EXPENSES,ADVICE,CORPORATE TRAVEL MANAGEMENTLIMITED,PINV2426,171.75
DBT,ACAS,29/02/2024,PUBLIC TRANSPORT & PARKING,STRATEGY,CORPORATE TRAVEL MANAGEMENTLIMITED,PINV2426,400.8
DBT,ACAS,29/02/2024,PUBLIC TRANSPORT & PARKING,DDAT,CORPORATE TRAVEL MANAGEMENTLIMITED,PINV2426,105.8
DBT,ACAS,29/02/2024,PUBLIC TRANSPORT & PARKING,STRATEGY,CORPORATE TRAVEL MANAGEMENTLIMITED,PINV2426,112.9
DBT,ACAS,29/02/2024,PUBLIC TRANSPORT & PARKING,F&G,CORPORATE TRAVEL MANAGEMENTLIMITED,PINV2426,-101.5
DBT,ACAS,29/02/2024,PUBLIC TRANSPORT & PARKING,DISPUTE,CORPORATE TRAVEL MANAGEMENTLIMITED,PINV2426,-54.8
DBT,ACAS,29/02/2024,PUBLIC TRANSPORT & PARKING,F&G,CORPORATE TRAVEL MANAGEMENTLIMITED,PINV2426,138.05
DBT,ACAS,29/02/2024,PUBLIC TRANSPORT & PARKING,ODHR,CORPORATE TRAVEL MANAGEMENTLIMITED,PINV2426,286.4
DBT,ACAS,29/02/2024,HOTEL EXPENSES,DDAT,CORPORATE TRAVEL MANAGEMENTLIMITED,PINV2426,165
DBT,ACAS,29/02/2024,HOTEL EXPENSES,DDAT,CORPORATE TRAVEL MANAGEMENTLIMITED,PINV2426,165.2
DBT,ACAS,29/02/2024,HOTEL EXPENSES,ADVICE,CORPORATE TRAVEL MANAGEMENTLIMITED,PINV2426,178.65
DBT,ACAS,29/02/2024,PUBLIC TRANSPORT & PARKING,DISPUTE,CORPORATE TRAVEL MANAGEMENTLIMITED,PINV2426,-6.7
DBT,ACAS,29/02/2024,HOTEL EXPENSES,F&G,CORPORATE TRAVEL MANAGEMENTLIMITED,PINV2426,75
DBT,ACAS,29/02/2024,HOTEL EXPENSES,DDAT,CORPORATE TRAVEL MANAGEMENTLIMITED,PINV2426,184.8
DBT,ACAS,29/02/2024,HOTEL EXPENSES,DDAT,CORPORATE TRAVEL MANAGEMENTLIMITED,PINV2426,441
DBT,ACAS,29/02/2024,HOTEL EXPENSES,STRATEGY,CORPORATE TRAVEL MANAGEMENTLIMITED,PINV2426,153
DBT,ACAS,29/02/2024,HOTEL EXPENSES,DDAT,CORPORATE TRAVEL MANAGEMENTLIMITED,PINV2426,137
DBT,ACAS,29/02/2024,HOTEL EXPENSES,DDAT,CORPORATE TRAVEL MANAGEMENTLIMITED,PINV2426,153
DBT,ACAS,29/02/2024,PUBLIC TRANSPORT & PARKING,F&G,CORPORATE TRAVEL MANAGEMENTLIMITED,PINV2426,58
DBT,ACAS,29/02/2024,PUBLIC TRANSPORT & PARKING,ADVICE,CORPORATE TRAVEL MANAGEMENTLIMITED,PINV2426,108
DBT,ACAS,29/02/2024,PUBLIC TRANSPORT & PARKING,DISPUTE,CORPORATE TRAVEL MANAGEMENTLIMITED,PINV2426,184.3
DBT,ACAS,29/02/2024,PUBLIC TRANSPORT & PARKING,ODHR,CORPORATE TRAVEL MANAGEMENTLIMITED,PINV2426,140.9
DBT,ACAS,29/02/2024,PUBLIC TRANSPORT & PARKING,DISPUTE,CORPORATE TRAVEL MANAGEMENTLIMITED,PINV2426,72.4
DBT,ACAS,29/02/2024,PUBLIC TRANSPORT & PARKING,DISPUTE,CORPORATE TRAVEL MANAGEMENTLIMITED,PINV2426,20.7
DBT,ACAS,29/02/2024,PUBLIC TRANSPORT & PARKING,DDAT,CORPORATE TRAVEL MANAGEMENTLIMITED,PINV2426,114.7
DBT,ACAS,29/02/2024,PUBLIC TRANSPORT & PARKING,F&G,CORPORATE TRAVEL MANAGEMENTLIMITED,PINV2426,27.1
DBT,ACAS,29/02/2024,PUBLIC TRANSPORT & PARKING,DISPUTE,CORPORATE TRAVEL MANAGEMENTLIMITED,PINV2426,50.8
DBT,ACAS,29/02/2024,PUBLIC TRANSPORT & PARKING,F&G,CORPORATE TRAVEL MANAGEMENTLIMITED,PINV2426,52.6
DBT,ACAS,29/02/2024,PUBLIC TRANSPORT & PARKING,ADVICE,CORPORATE TRAVEL MANAGEMENTLIMITED,PINV2426,39.1
DBT,ACAS,29/02/2024,PUBLIC TRANSPORT & PARKING,STRATEGY,CORPORATE TRAVEL MANAGEMENTLIMITED,PINV2426,106.5
DBT,ACAS,29/02/2024,PUBLIC TRANSPORT & PARKING,F&G,CORPORATE TRAVEL MANAGEMENTLIMITED,PINV2426,52.6
DBT,ACAS,29/02/2024,PUBLIC TRANSPORT & PARKING,STRATEGY,CORPORATE TRAVEL MANAGEMENTLIMITED,PINV2426,340.2
DBT,ACAS,29/02/2024,PUBLIC TRANSPORT & PARKING,DISPUTE,CORPORATE TRAVEL MANAGEMENTLIMITED,PINV2426,142.1
DBT,ACAS,29/02/2024,PUBLIC TRANSPORT & PARKING,DISPUTE,CORPORATE TRAVEL MANAGEMENTLIMITED,PINV2426,218
DBT,ACAS,29/02/2024,HOTEL EXPENSES,ADVICE,CORPORATE TRAVEL MANAGEMENTLIMITED,PINV2426,177.15
DBT,ACAS,29/02/2024,HOTEL EXPENSES,STRATEGY,CORPORATE TRAVEL MANAGEMENTLIMITED,PINV2426,147
DBT,ACAS,29/02/2024,HOTEL EXPENSES,F&G,CORPORATE TRAVEL MANAGEMENTLIMITED,PINV2426,88
DBT,ACAS,29/02/2024,HOTEL EXPENSES,ADVICE,CORPORATE TRAVEL MANAGEMENTLIMITED,PINV2426,88
DBT,ACAS,29/02/2024,PUBLIC TRANSPORT & PARKING,ADVICE,CORPORATE TRAVEL MANAGEMENTLIMITED,PINV2426,116.25
DBT,ACAS,29/02/2024,PUBLIC TRANSPORT & PARKING,DISPUTE,CORPORATE TRAVEL MANAGEMENTLIMITED,PINV2426,102
DBT,ACAS,29/02/2024,PUBLIC TRANSPORT & PARKING,DISPUTE,CORPORATE TRAVEL MANAGEMENTLIMITED,PINV2426,34.1
DBT,ACAS,29/02/2024,HOTEL EXPENSES,ADVICE,CORPORATE TRAVEL MANAGEMENTLIMITED,PINV2426,232.58
DBT,ACAS,29/02/2024,PUBLIC TRANSPORT & PARKING,DISPUTE,CORPORATE TRAVEL MANAGEMENTLIMITED,PINV2426,240
DBT,ACAS,29/02/2024,HOTEL EXPENSES,F&G,CORPORATE TRAVEL MANAGEMENTLIMITED,PINV2426,93.25
DBT,ACAS,29/02/2024,PUBLIC TRANSPORT & PARKING,ODHR,CORPORATE TRAVEL MANAGEMENTLIMITED,PINV2426,62.1
DBT,ACAS,29/02/2024,PUBLIC TRANSPORT & PARKING,DISPUTE,CORPORATE TRAVEL MANAGEMENTLIMITED,PINV2426,151.6
DBT,ACAS,29/02/2024,PUBLIC TRANSPORT & PARKING,F&G,CORPORATE TRAVEL MANAGEMENTLIMITED,PINV2426,27.1
DBT,ACAS,29/02/2024,HOTEL EXPENSES,STRATEGY,CORPORATE TRAVEL MANAGEMENTLIMITED,PINV2426,93.25
DBT,ACAS,29/02/2024,PUBLIC TRANSPORT & PARKING,F&G,CORPORATE TRAVEL MANAGEMENTLIMITED,PINV2426,115.4
DBT,ACAS,29/02/2024,PUBLIC TRANSPORT & PARKING,F&G,CORPORATE TRAVEL MANAGEMENTLIMITED,PINV2426,121.9
DBT,ACAS,29/02/2024,PUBLIC TRANSPORT & PARKING,ADVICE,CORPORATE TRAVEL MANAGEMENTLIMITED,PINV2426,14.9
DBT,ACAS,29/02/2024,PUBLIC TRANSPORT & PARKING,DDAT,CORPORATE TRAVEL MANAGEMENTLIMITED,PINV2426,105.4
DBT,ACAS,29/02/2024,PUBLIC TRANSPORT & PARKING,STRATEGY,CORPORATE TRAVEL MANAGEMENTLIMITED,PINV2426,129.4
DBT,ACAS,29/02/2024,PUBLIC TRANSPORT & PARKING,STRATEGY,CORPORATE TRAVEL MANAGEMENTLIMITED,PINV2426,79.2
DBT,ACAS,29/02/2024,HOTEL EXPENSES,DISPUTE,CORPORATE TRAVEL MANAGEMENTLIMITED,PINV2426,93.25
DBT,ACAS,29/02/2024,PUBLIC TRANSPORT & PARKING,DISPUTE,CORPORATE TRAVEL MANAGEMENTLIMITED,PINV2426,58.5
DBT,ACAS,29/02/2024,PUBLIC TRANSPORT & PARKING,F&G,CORPORATE TRAVEL MANAGEMENTLIMITED,PINV2426,40.75
DBT,ACAS,29/02/2024,PUBLIC TRANSPORT & PARKING,ODHR,CORPORATE TRAVEL MANAGEMENTLIMITED,PINV2426,105.4
DBT,ACAS,29/02/2024,PUBLIC TRANSPORT & PARKING,F&G,CORPORATE TRAVEL MANAGEMENTLIMITED,PINV2426,-269
DBT,ACAS,29/02/2024,PUBLIC TRANSPORT & PARKING,DISPUTE,CORPORATE TRAVEL MANAGEMENTLIMITED,PINV2426,126.4
DBT,ACAS,29/02/2024,PUBLIC TRANSPORT & PARKING,ODHR,CORPORATE TRAVEL MANAGEMENTLIMITED,PINV2426,-91.6
DBT,ACAS,29/02/2024,PUBLIC TRANSPORT & PARKING,ADVICE,CORPORATE TRAVEL MANAGEMENTLIMITED,PINV2426,91.8
DBT,ACAS,29/02/2024,PUBLIC TRANSPORT & PARKING,ADVICE,CORPORATE TRAVEL MANAGEMENTLIMITED,PINV2426,91.8
DBT,ACAS,29/02/2024,PUBLIC TRANSPORT & PARKING,ODHR,CORPORATE TRAVEL MANAGEMENTLIMITED,PINV2426,277.6
DBT,ACAS,29/02/2024,PUBLIC TRANSPORT & PARKING,ADVICE,CORPORATE TRAVEL MANAGEMENTLIMITED,PINV2426,171.3
DBT,ACAS,29/02/2024,PUBLIC TRANSPORT & PARKING,DDAT,CORPORATE TRAVEL MANAGEMENTLIMITED,PINV2426,263.4
DBT,ACAS,29/02/2024,PUBLIC TRANSPORT & PARKING,DISPUTE,CORPORATE TRAVEL MANAGEMENTLIMITED,PINV2426,126.4
DBT,ACAS,29/02/2024,PUBLIC TRANSPORT & PARKING,DISPUTE,CORPORATE TRAVEL MANAGEMENTLIMITED,PINV2426,106.5
DBT,ACAS,29/02/2024,PUBLIC TRANSPORT & PARKING,DISPUTE,CORPORATE TRAVEL MANAGEMENTLIMITED,PINV2426,15.9
DBT,ACAS,29/02/2024,PUBLIC TRANSPORT & PARKING,DISPUTE,CORPORATE TRAVEL MANAGEMENTLIMITED,PINV2426,54
DBT,ACAS,29/02/2024,PUBLIC TRANSPORT & PARKING,F&G,CORPORATE TRAVEL MANAGEMENTLIMITED,PINV2426,-126.65
DBT,ACAS,29/02/2024,PUBLIC TRANSPORT & PARKING,ADVICE,CORPORATE TRAVEL MANAGEMENTLIMITED,PINV2426,-41
DBT,ACAS,29/02/2024,PUBLIC TRANSPORT & PARKING,ADVICE,CORPORATE TRAVEL MANAGEMENTLIMITED,PINV2426,-41
DBT,ACAS,29/02/2024,PUBLIC TRANSPORT & PARKING,ADVICE,CORPORATE TRAVEL MANAGEMENTLIMITED,PINV2426,-115.7
DBT,ACAS,29/02/2024,HOTEL EXPENSES,DISPUTE,CORPORATE TRAVEL MANAGEMENTLIMITED,PINV2426,270.96
DBT,ACAS,29/02/2024,HOTEL EXPENSES,DISPUTE,CORPORATE TRAVEL MANAGEMENTLIMITED,PINV2426,236.97
DBT,ACAS,29/02/2024,HOTEL EXPENSES,ADVICE,CORPORATE TRAVEL MANAGEMENTLIMITED,PINV2426,84.99
DBT,ACAS,29/02/2024,HOTEL EXPENSES,DISPUTE,CORPORATE TRAVEL MANAGEMENTLIMITED,PINV2426,236.97
DBT,ACAS,29/02/2024,HOTEL EXPENSES,DISPUTE,CORPORATE TRAVEL MANAGEMENTLIMITED,PINV2426,236.97
DBT,ACAS,29/02/2024,HOTEL EXPENSES,DISPUTE,CORPORATE TRAVEL MANAGEMENTLIMITED,PINV2426,236.97
DBT,ACAS,29/02/2024,HOTEL EXPENSES,DISPUTE,CORPORATE TRAVEL MANAGEMENTLIMITED,PINV2426,236.97
DBT,ACAS,29/02/2024,PUBLIC TRANSPORT & PARKING,ODHR,CORPORATE TRAVEL MANAGEMENTLIMITED,PINV2426,143.2
DBT,ACAS,29/02/2024,PUBLIC TRANSPORT & PARKING,ADVICE,CORPORATE TRAVEL MANAGEMENTLIMITED,PINV2426,172.4
DBT,ACAS,29/02/2024,PUBLIC TRANSPORT & PARKING,DDAT,CORPORATE TRAVEL MANAGEMENTLIMITED,PINV2426,-171.4
DBT,ACAS,29/02/2024,PUBLIC TRANSPORT & PARKING,DISPUTE,CORPORATE TRAVEL MANAGEMENTLIMITED,PINV2426,146.7
DBT,ACAS,29/02/2024,PUBLIC TRANSPORT & PARKING,DISPUTE,CORPORATE TRAVEL MANAGEMENTLIMITED,PINV2426,331
DBT,ACAS,29/02/2024,PUBLIC TRANSPORT & PARKING,ADVICE,CORPORATE TRAVEL MANAGEMENTLIMITED,PINV2426,118.2
DBT,ACAS,29/02/2024,PUBLIC TRANSPORT & PARKING,DDAT,CORPORATE TRAVEL MANAGEMENTLIMITED,PINV2426,18.1
DBT,ACAS,29/02/2024,PUBLIC TRANSPORT & PARKING,ADVICE,CORPORATE TRAVEL MANAGEMENTLIMITED,PINV2426,152.5
DBT,ACAS,29/02/2024,HOTEL EXPENSES,F&G,CORPORATE TRAVEL MANAGEMENTLIMITED,PINV2426,93.25
DBT,ACAS,29/02/2024,PUBLIC TRANSPORT & PARKING,F&G,CORPORATE TRAVEL MANAGEMENTLIMITED,PINV2426,86.9
DBT,ACAS,29/02/2024,PUBLIC TRANSPORT & PARKING,F&G,CORPORATE TRAVEL MANAGEMENTLIMITED,PINV2426,250.7
DBT,ACAS,29/02/2024,PUBLIC TRANSPORT & PARKING,F&G,CORPORATE TRAVEL MANAGEMENTLIMITED,PINV2426,-47.2
DBT,ACAS,29/02/2024,PUBLIC TRANSPORT & PARKING,F&G,CORPORATE TRAVEL MANAGEMENTLIMITED,PINV2426,-52.2
DBT,ACAS,29/02/2024,PUBLIC TRANSPORT & PARKING,F&G,CORPORATE TRAVEL MANAGEMENTLIMITED,PINV2426,53.6
DBT,ACAS,29/02/2024,PUBLIC TRANSPORT & PARKING,DISPUTE,CORPORATE TRAVEL MANAGEMENTLIMITED,PINV2426,33.1
DBT,ACAS,29/02/2024,PUBLIC TRANSPORT & PARKING,ODHR,CORPORATE TRAVEL MANAGEMENTLIMITED,PINV2426,184.7
DBT,ACAS,29/02/2024,PUBLIC TRANSPORT & PARKING,ODHR,CORPORATE TRAVEL MANAGEMENTLIMITED,PINV2426,88.9
DBT,ACAS,29/02/2024,HOTEL EXPENSES,DISPUTE,CORPORATE TRAVEL MANAGEMENTLIMITED,PINV2426,114.3
DBT,ACAS,29/02/2024,HOTEL EXPENSES,F&G,CORPORATE TRAVEL MANAGEMENTLIMITED,PINV2426,345.95
DBT,ACAS,29/02/2024,HOTEL EXPENSES,ADVICE,CORPORATE TRAVEL MANAGEMENTLIMITED,PINV2426,242.47
DBT,ACAS,29/02/2024,HOTEL EXPENSES,ADVICE,CORPORATE TRAVEL MANAGEMENTLIMITED,PINV2426,242.47
DBT,ACAS,29/02/2024,HOTEL EXPENSES,DISPUTE,CORPORATE TRAVEL MANAGEMENTLIMITED,PINV2426,173.88
DBT,ACAS,29/02/2024,HOTEL EXPENSES,F&G,CORPORATE TRAVEL MANAGEMENTLIMITED,PINV2426,85
DBT,ACAS,29/02/2024,HOTEL EXPENSES,DISPUTE,CORPORATE TRAVEL MANAGEMENTLIMITED,PINV2426,74
DBT,ACAS,29/02/2024,HOTEL EXPENSES,ADVICE,CORPORATE TRAVEL MANAGEMENTLIMITED,PINV2426,82.5
DBT,ACAS,29/02/2024,HOTEL EXPENSES,DISPUTE,CORPORATE TRAVEL MANAGEMENTLIMITED,PINV2426,176
DBT,ACAS,29/02/2024,HOTEL EXPENSES,DISPUTE,CORPORATE TRAVEL MANAGEMENTLIMITED,PINV2426,112.5
DBT,ACAS,29/02/2024,PUBLIC TRANSPORT & PARKING,DISPUTE,CORPORATE TRAVEL MANAGEMENTLIMITED,PINV2426,100.2
DBT,ACAS,29/02/2024,PUBLIC TRANSPORT & PARKING,DISPUTE,CORPORATE TRAVEL MANAGEMENTLIMITED,PINV2426,255.5
DBT,ACAS,29/02/2024,PUBLIC TRANSPORT & PARKING,DISPUTE,CORPORATE TRAVEL MANAGEMENTLIMITED,PINV2426,65
DBT,ACAS,29/02/2024,PUBLIC TRANSPORT & PARKING,DISPUTE,CORPORATE TRAVEL MANAGEMENTLIMITED,PINV2426,65
DBT,ACAS,29/02/2024,PUBLIC TRANSPORT & PARKING,ADVICE,CORPORATE TRAVEL MANAGEMENTLIMITED,PINV2426,14.9
DBT,ACAS,29/02/2024,PUBLIC TRANSPORT & PARKING,DISPUTE,CORPORATE TRAVEL MANAGEMENTLIMITED,PINV2426,41.7
DBT,ACAS,29/02/2024,PUBLIC TRANSPORT & PARKING,ADVICE,CORPORATE TRAVEL MANAGEMENTLIMITED,PINV2426,86.3
DBT,ACAS,29/02/2024,PUBLIC TRANSPORT & PARKING,DISPUTE,CORPORATE TRAVEL MANAGEMENTLIMITED,PINV2426,31.3
DBT,ACAS,29/02/2024,PUBLIC TRANSPORT & PARKING,STRATEGY,CORPORATE TRAVEL MANAGEMENTLIMITED,PINV2426,59.6
DBT,ACAS,29/02/2024,PUBLIC TRANSPORT & PARKING,STRATEGY,CORPORATE TRAVEL MANAGEMENTLIMITED,PINV2426,59.6
DBT,ACAS,29/02/2024,PUBLIC TRANSPORT & PARKING,STRATEGY,CORPORATE TRAVEL MANAGEMENTLIMITED,PINV2426,242.1
DBT,ACAS,29/02/2024,PUBLIC TRANSPORT & PARKING,ODHR,CORPORATE TRAVEL MANAGEMENTLIMITED,PINV2426,133.4
DBT,ACAS,29/02/2024,PUBLIC TRANSPORT & PARKING,DISPUTE,CORPORATE TRAVEL MANAGEMENTLIMITED,PINV2426,108.5
DBT,ACAS,29/02/2024,PUBLIC TRANSPORT & PARKING,DDAT,CORPORATE TRAVEL MANAGEMENTLIMITED,PINV2426,257.4
DBT,ACAS,29/02/2024,HOTEL EXPENSES,ODHR,CORPORATE TRAVEL MANAGEMENTLIMITED,PINV2426,91
DBT,ACAS,29/02/2024,HOTEL EXPENSES,DDAT,CORPORATE TRAVEL MANAGEMENTLIMITED,PINV2426,135.9
DBT,ACAS,29/02/2024,HOTEL EXPENSES,ODHR,CORPORATE TRAVEL MANAGEMENTLIMITED,PINV2426,90
DBT,ACAS,29/02/2024,HOTEL EXPENSES,ADVICE,CORPORATE TRAVEL MANAGEMENTLIMITED,PINV2426,62.67
DBT,ACAS,29/02/2024,PUBLIC TRANSPORT & PARKING,DDAT,CORPORATE TRAVEL MANAGEMENTLIMITED,PINV2426,245.2
DBT,ACAS,29/02/2024,PUBLIC TRANSPORT & PARKING,DDAT,CORPORATE TRAVEL MANAGEMENTLIMITED,PINV2426,275.2
DBT,ACAS,29/02/2024,HOTEL EXPENSES,STRATEGY,CORPORATE TRAVEL MANAGEMENTLIMITED,PINV2426,153
DBT,ACAS,29/02/2024,HOTEL EXPENSES,STRATEGY,CORPORATE TRAVEL MANAGEMENTLIMITED,PINV2426,295
DBT,ACAS,29/02/2024,HOTEL EXPENSES,ODHR,CORPORATE TRAVEL MANAGEMENTLIMITED,PINV2426,90
DBT,ACAS,29/02/2024,HOTEL EXPENSES,DISPUTE,CORPORATE TRAVEL MANAGEMENTLIMITED,PINV2426,99
DBT,ACAS,29/02/2024,HOTEL EXPENSES,F&G,CORPORATE TRAVEL MANAGEMENTLIMITED,PINV2426,143
DBT,ACAS,29/02/2024,HOTEL EXPENSES,ODHR,CORPORATE TRAVEL MANAGEMENTLIMITED,PINV2426,91
DBT,ACAS,29/02/2024,HOTEL EXPENSES,DISPUTE,CORPORATE TRAVEL MANAGEMENTLIMITED,PINV2426,183.48
DBT,ACAS,29/02/2024,HOTEL EXPENSES,DISPUTE,CORPORATE TRAVEL MANAGEMENTLIMITED,PINV2426,164
DBT,ACAS,29/02/2024,HOTEL EXPENSES,F&G,CORPORATE TRAVEL MANAGEMENTLIMITED,PINV2426,219.3
DBT,ACAS,29/02/2024,PUBLIC TRANSPORT & PARKING,DISPUTE,CORPORATE TRAVEL MANAGEMENTLIMITED,PINV2426,32.1
DBT,ACAS,29/02/2024,PUBLIC TRANSPORT & PARKING,DISPUTE,CORPORATE TRAVEL MANAGEMENTLIMITED,PINV2426,25.4
DBT,ACAS,29/02/2024,PUBLIC TRANSPORT & PARKING,DISPUTE,CORPORATE TRAVEL MANAGEMENTLIMITED,PINV2426,39.1
DBT,ACAS,29/02/2024,PUBLIC TRANSPORT & PARKING,F&G,CORPORATE TRAVEL MANAGEMENTLIMITED,PINV2426,24.1
DBT,ACAS,29/02/2024,PUBLIC TRANSPORT & PARKING,STRATEGY,CORPORATE TRAVEL MANAGEMENTLIMITED,PINV2426,317
DBT,ACAS,29/02/2024,PUBLIC TRANSPORT & PARKING,ODHR,CORPORATE TRAVEL MANAGEMENTLIMITED,PINV2426,105.4
DBT,ACAS,29/02/2024,PUBLIC TRANSPORT & PARKING,F&G,CORPORATE TRAVEL MANAGEMENTLIMITED,PINV2426,27.4
DBT,ACAS,29/02/2024,PUBLIC TRANSPORT & PARKING,F&G,CORPORATE TRAVEL MANAGEMENTLIMITED,PINV2426,143.6
DBT,ACAS,29/02/2024,PUBLIC TRANSPORT & PARKING,STRATEGY,CORPORATE TRAVEL MANAGEMENTLIMITED,PINV2426,120
DBT,ACAS,29/02/2024,PUBLIC TRANSPORT & PARKING,STRATEGY,CORPORATE TRAVEL MANAGEMENTLIMITED,PINV2426,72.8
DBT,ACAS,29/02/2024,PUBLIC TRANSPORT & PARKING,STRATEGY,CORPORATE TRAVEL MANAGEMENTLIMITED,PINV2426,326.9
DBT,ACAS,29/02/2024,HOTEL EXPENSES,DDAT,CORPORATE TRAVEL MANAGEMENTLIMITED,PINV2426,208
DBT,ACAS,29/02/2024,HOTEL EXPENSES,DDAT,CORPORATE TRAVEL MANAGEMENTLIMITED,PINV2426,153.9
DBT,ACAS,29/02/2024,HOTEL EXPENSES,ODHR,CORPORATE TRAVEL MANAGEMENTLIMITED,PINV2426,135.15
DBT,ACAS,29/02/2024,PUBLIC TRANSPORT & PARKING,DISPUTE,CORPORATE TRAVEL MANAGEMENTLIMITED,PINV2426,119.26
DBT,ACAS,29/02/2024,HOTEL EXPENSES,F&G,CORPORATE TRAVEL MANAGEMENTLIMITED,PINV2426,109.65
DBT,ACAS,29/02/2024,HOTEL EXPENSES,ADVICE,CORPORATE TRAVEL MANAGEMENTLIMITED,PINV2426,112.3
DBT,ACAS,29/02/2024,HOTEL EXPENSES,DDAT,CORPORATE TRAVEL MANAGEMENTLIMITED,PINV2426,105.2
DBT,ACAS,29/02/2024,HOTEL EXPENSES,ADVICE,CORPORATE TRAVEL MANAGEMENTLIMITED,PINV2426,67.89
DBT,ACAS,29/02/2024,HOTEL EXPENSES,DISPUTE,CORPORATE TRAVEL MANAGEMENTLIMITED,PINV2426,94
DBT,ACAS,29/02/2024,HOTEL EXPENSES,ADVICE,CORPORATE TRAVEL MANAGEMENTLIMITED,PINV2426,71.49
DBT,ACAS,29/02/2024,HOTEL EXPENSES,ADVICE,CORPORATE TRAVEL MANAGEMENTLIMITED,PINV2426,94
DBT,ACAS,29/02/2024,HOTEL EXPENSES,STRATEGY,CORPORATE TRAVEL MANAGEMENTLIMITED,PINV2426,109.65
DBT,ACAS,29/02/2024,HOTEL EXPENSES,DDAT,CORPORATE TRAVEL MANAGEMENTLIMITED,PINV2426,126.9
DBT,ACAS,29/02/2024,PUBLIC TRANSPORT & PARKING,DDAT,CORPORATE TRAVEL MANAGEMENTLIMITED,PINV2426,257.4
DBT,ACAS,29/02/2024,HOTEL EXPENSES,ADVICE,CORPORATE TRAVEL MANAGEMENTLIMITED,PINV2426,67.89
DBT,ACAS,29/02/2024,HOTEL EXPENSES,ODHR,CORPORATE TRAVEL MANAGEMENTLIMITED,PINV2426,83.19
DBT,ACAS,29/02/2024,HOTEL EXPENSES,ODHR,CORPORATE TRAVEL MANAGEMENTLIMITED,PINV2426,85.8
DBT,ACAS,29/02/2024,HOTEL EXPENSES,ADVICE,CORPORATE TRAVEL MANAGEMENTLIMITED,PINV2426,73.33
DBT,ACAS,29/02/2024,HOTEL EXPENSES,ADVICE,CORPORATE TRAVEL MANAGEMENTLIMITED,PINV2426,94
DBT,ACAS,29/02/2024,HOTEL EXPENSES,STRATEGY,CORPORATE TRAVEL MANAGEMENTLIMITED,PINV2426,104
DBT,ACAS,29/02/2024,HOTEL EXPENSES,STRATEGY,CORPORATE TRAVEL MANAGEMENTLIMITED,PINV2426,59.75
DBT,ACAS,29/02/2024,PUBLIC TRANSPORT & PARKING,STRATEGY,CORPORATE TRAVEL MANAGEMENTLIMITED,PINV2426,125.3
DBT,ACAS,29/02/2024,PUBLIC TRANSPORT & PARKING,ADVICE,CORPORATE TRAVEL MANAGEMENTLIMITED,PINV2426,116.5
DBT,ACAS,29/02/2024,PUBLIC TRANSPORT & PARKING,ADVICE,CORPORATE TRAVEL MANAGEMENTLIMITED,PINV2426,14.9
DBT,ACAS,29/02/2024,PUBLIC TRANSPORT & PARKING,STRATEGY,CORPORATE TRAVEL MANAGEMENTLIMITED,PINV2426,103
DBT,ACAS,29/02/2024,PUBLIC TRANSPORT & PARKING,DISPUTE,CORPORATE TRAVEL MANAGEMENTLIMITED,PINV2426,85.5
DBT,ACAS,29/02/2024,PUBLIC TRANSPORT & PARKING,ADVICE,CORPORATE TRAVEL MANAGEMENTLIMITED,PINV2426,17.7
DBT,ACAS,29/02/2024,AGENCY STAFF,DISPUTE,ALEXANDER MANN SOLUTIONS LTD,POIN2426,648.68
DBT,ACAS,18/02/2024,SERVICE CHARGES,F&G,GOVERNMENT PROPERTY AGENCY,PINV2427,18269.91
DBT,ACAS,18/02/2024,RATES,F&G,GOVERNMENT PROPERTY AGENCY,PINV2427,8634.37
DBT,ACAS,18/02/2024,Lease Liability,F&G,GOVERNMENT PROPERTY AGENCY,PINV2427,31025.62
DBT,ACAS,01/01/2024,TELEPHONES,DDAT,GTT,POIN2427,403.22
DBT,ACAS,01/01/2024,TELEPHONES,DDAT,GTT,POIN2427,44.81
DBT,ACAS,01/01/2024,PROFESSIONAL FEES,DDAT,GTT,POIN2427,18.02
DBT,ACAS,12/03/2024,EXHIBITION COSTS,ADVICE,THE UK CAREERS FAIR LIMITED,PINV2428,474
DBT,ACAS,04/03/2024,CONTRACTOR OFF-PAYROLL IN IR35,ODHR,MICHAEL PAGE,POIN2428,8526.96
DBT,ACAS,25/03/2024,VENUE HIRE (REC VAT),ADVICE,Agiito,PINV2429,406
DBT,ACAS,25/03/2024,CATERING,ADVICE,Agiito,PINV2429,168
DBT,ACAS,25/03/2024,CATERING,ADVICE,Agiito,PINV2429,98
DBT,ACAS,25/03/2024,VENUE HIRE (REC VAT),ADVICE,Agiito,PINV2429,360
DBT,ACAS,25/03/2024,VENUE HIRE (REC VAT),ADVICE,Agiito,PINV2429,138
DBT,ACAS,25/03/2024,CATERING,ADVICE,Agiito,PINV2429,252
DBT,ACAS,25/03/2024,CATERING,ADVICE,Agiito,PINV2429,66
DBT,ACAS,25/03/2024,CONFERENCE COSTS [NON - STAFF],CAC,Agiito,PINV2429,720
DBT,ACAS,25/03/2024,VENUE HIRE (REC VAT),ADVICE,Agiito,PINV2429,587.35
DBT,ACAS,25/03/2024,TEAM MEETINGS,F&G,Agiito,PINV2429,848
DBT,ACAS,25/03/2024,TEAM MEETINGS,F&G,Agiito,PINV2429,560
DBT,ACAS,25/03/2024,TEAM MEETINGS,F&G,Agiito,PINV2429,336
DBT,ACAS,25/03/2024,VENUE HIRE (REC VAT),ADVICE,Agiito,PINV2429,750
DBT,ACAS,25/03/2024,TEAM MEETINGS,ADVICE,Agiito,PINV2429,1802.9
DBT,ACAS,25/03/2024,TEAM MEETINGS,ADVICE,Agiito,PINV2429,434.49
DBT,ACAS,25/03/2024,TEAM MEETINGS,ADVICE,Agiito,PINV2429,660
DBT,ACAS,25/03/2024,CONFERENCE COSTS [NON - STAFF],CAC,Agiito,PINV2429,1014
DBT,ACAS,25/03/2024,CATERING,CAC,Agiito,PINV2429,72
DBT,ACAS,25/03/2024,CATERING,CAC,Agiito,PINV2429,115.06
DBT,ACAS,01/01/2024,TELEPHONES,DDAT,GTT,POIN2429,887.7
DBT,ACAS,01/01/2024,TELEPHONES,DDAT,GTT,POIN2429,98.63
DBT,ACAS,01/01/2024,PROFESSIONAL FEES,DDAT,GTT,POIN2429,427.84
DBT,ACAS,29/02/2024,CONTRACTOR OFF-PAYROLL IN IR35,DDAT,ALEXANDER MANN SOLUTIONS LTD,POIN2430,2646.24
DBT,ACAS,29/02/2024,CONTRACTOR OFF-PAYROLL IN IR35,DDAT,ALEXANDER MANN SOLUTIONS LTD,POIN2431,4095.36
DBT,ACAS,23/03/2024,SOFTWARE & LICENCES,DDAT,ZOOM VIDEO COMMUNICATIONS INC,PINV2432,2051.35
DBT,ACAS,29/02/2024,CONTRACTOR OFF-PAYROLL IN IR35,DDAT,ALEXANDER MANN SOLUTIONS LTD,POIN2432,4300.5
DBT,ACAS,01/12/2023,TELEPHONES,DDAT,GTT,POIN2433,1208
DBT,ACAS,01/12/2023,TELEPHONES,DDAT,GTT,POIN2433,134.22
DBT,ACAS,28/12/2023,FACILITIES MANAGEMENT,F&G,GOVERNMENT PROPERTY AGENCY,POIN2434,1616.76
DBT,ACAS,28/12/2023,PROFESSIONAL FEES,F&G,GOVERNMENT PROPERTY AGENCY,POIN2434,1699.42
DBT,ACAS,25/03/2024,REFUNDS,ADVICE,BATH SPA UNIVERSITY,PINV2436,270
DBT,ACAS,01/12/2023,TELEPHONES,DDAT,GTT,POIN2436,177.54
DBT,ACAS,01/12/2023,TELEPHONES,DDAT,GTT,POIN2436,19.73
DBT,ACAS,01/12/2023,TELEPHONES,DDAT,GTT,POIN2436,25755.71
DBT,ACAS,01/12/2023,TELEPHONES,DDAT,GTT,POIN2436,2861.74
DBT,ACAS,01/12/2023,PROFESSIONAL FEES,DDAT,GTT,POIN2436,8100
DBT,ACAS,26/02/2024,PROFFESIONAL/SPECIALIST ADVICE,ADVICE,PROFESSIONAL FORUMS LIMITED,POIN2438,9600
DBT,ACAS,25/03/2024,REFUNDS,ADVICE,GLOUCESTERSHIRE CONSTABULARY,PINV2439,250
DBT,ACAS,01/03/2024,TELEPHONES,DDAT,GTT,POIN2439,25558.06
DBT,ACAS,01/03/2024,TELEPHONES,DDAT,GTT,POIN2439,2839.79
DBT,ACAS,01/03/2024,TELEPHONES,DDAT,GTT,POIN2439,643.02
DBT,ACAS,01/03/2024,TELEPHONES,DDAT,GTT,POIN2439,71.45
DBT,ACAS,01/03/2024,PROFESSIONAL FEES,DDAT,GTT,POIN2439,8100
DBT,ACAS,01/03/2024,PROFESSIONAL FEES,DDAT,GTT,POIN2439,221.12
DBT,ACAS,29/02/2024,TRAINERS & GUEST SPEAKERS,DISPUTE,THINK PRODUCTIVE LTD,POIN2440,2350.26
DBT,ACAS,25/03/2024,HIRE CAR COSTS,DISPUTE,ENTERPRISE RENT-A-CAR,PINV2441,102.85
DBT,ACAS,25/03/2024,HIRE CAR PETROL,DISPUTE,ENTERPRISE RENT-A-CAR,PINV2441,21.27
DBT,ACAS,25/03/2024,HIRE CAR COSTS,ADVICE,ENTERPRISE RENT-A-CAR,PINV2441,184.18
DBT,ACAS,25/03/2024,HIRE CAR COSTS,STRATEGY,ENTERPRISE RENT-A-CAR,PINV2441,79.24
DBT,ACAS,25/03/2024,HIRE CAR COSTS,DISPUTE,ENTERPRISE RENT-A-CAR,PINV2441,102.42
DBT,ACAS,25/03/2024,HIRE CAR COSTS,DISPUTE,ENTERPRISE RENT-A-CAR,PINV2441,141.59
DBT,ACAS,25/03/2024,HIRE CAR PETROL,DISPUTE,ENTERPRISE RENT-A-CAR,PINV2441,65.13
DBT,ACAS,25/03/2024,HIRE CAR COSTS,ADVICE,ENTERPRISE RENT-A-CAR,PINV2441,104.09
DBT,ACAS,25/03/2024,HIRE CAR COSTS,ADVICE,ENTERPRISE RENT-A-CAR,PINV2441,105.65
DBT,ACAS,29/02/2024,PUBLIC TRANSPORT & PARKING,DISPUTE,NEALS TRAVEL LTD,POIN2441,1000
DBT,ACAS,29/02/2024,STAFF RECRUITMENT COSTS,ODHR,HAYMARKET MEDIA GROUP LIMITED,POIN2442,2040.6
DBT,ACAS,26/02/2024,STAFF RECRUITMENT COSTS,ODHR,DVV MEDIA INTERNATIONAL LTD,POIN2443,1977.6
DBT,ACAS,27/03/2024,PROFESSIONAL FEES,DDAT,AXIS 12 LIMITED,PINV2444,9600
DBT,ACAS,29/02/2024,PROFESSIONAL FEES,DDAT,VERSION 1 SOLUTIONS LTD,POIN2444,6466.69
DBT,ACAS,21/02/2024,EXTERNAL LEARNING,ODHR,CABINET OFFICE,POIN2445,430.8
DBT,ACAS,21/02/2024,EXTERNAL LEARNING,ODHR,CABINET OFFICE,POIN2445,531
DBT,ACAS,27/03/2024,REFUNDS,ADVICE,PREVENTX LTD,PINV2446,1752
DBT,ACAS,29/02/2024,PROFESSIONAL FEES,DDAT,VERSION 1 SOLUTIONS LTD,POIN2446,493.2
DBT,ACAS,28/02/2024,OTHER RESEARCH,STRATEGY,IPSOS (MARKET RESEARCH) LTD,POIN2447,29400
DBT,ACAS,29/02/2024,PROFESSIONAL FEES,ADVICE,SNAP SURVEYS LTD,POIN2448,765
DBT,ACAS,05/03/2024,EXTERNAL LEARNING,ODHR,CABINET OFFICE,POIN2449,336
DBT,ACAS,29/02/2024,EXTERNAL LEARNING,ODHR,BEHAVIOURAL INSIGHTS TEAM,POIN2450,19200
DBT,ACAS,07/03/2024,CONTRACTOR OFF-PAYROLL IN IR35,STRATEGY,ALEXANDER MANN SOLUTIONS LTD,POIN2452,2309.74
DBT,ACAS,07/03/2024,CONTRACTOR OFF-PAYROLL IN IR35,STRATEGY,ALEXANDER MANN SOLUTIONS LTD,POIN2452,2309.74
DBT,ACAS,07/03/2024,CONTRACTOR OFF-PAYROLL IN IR35,STRATEGY,ALEXANDER MANN SOLUTIONS LTD,POIN2452,2309.73
DBT,ACAS,07/03/2024,AGENCY STAFF,ADVICE,ALEXANDER MANN SOLUTIONS LTD,POIN2453,609.24
DBT,ACAS,07/03/2024,AGENCY STAFF,DISPUTE,ALEXANDER MANN SOLUTIONS LTD,POIN2454,781.49
DBT,ACAS,07/03/2024,AGENCY STAFF,ADVICE,ALEXANDER MANN SOLUTIONS LTD,POIN2455,933.59
DBT,ACAS,07/03/2024,AGENCY STAFF,ADVICE,ALEXANDER MANN SOLUTIONS LTD,POIN2455,1012.46
DBT,ACAS,20/02/2024,EXTERNAL LEARNING,ODHR,PROFESSIONAL DEVELOPMENT GROUP�,POIN2456,475.2
DBT,ACAS,28/02/2024,OCCUPATIONAL HEALTH SERVICE,F&G,FLEXIFORM BUSINESS FURNITURE LTD,POIN2460,487.44
DBT,ACAS,01/03/2024,PUBLICATIONS AND PERIODICALS,DDAT,LEXISNEXIS,POIN2461,37508
DBT,ACAS,29/02/2024,SOFTWARE & LICENCES,DDAT,PROBRAND LIMITED,POIN2462,16237.8
DBT,ACAS,29/02/2024,SOFTWARE & LICENCES,DDAT,PROBRAND LIMITED,POIN2462,1804.2
DBT,ACAS,29/02/2024,SOFTWARE & LICENCES,DDAT,PROBRAND LIMITED,POIN2462,15510.72
DBT,ACAS,29/02/2024,SOFTWARE & LICENCES,DDAT,PROBRAND LIMITED,POIN2462,1723.39
DBT,ACAS,29/02/2024,RECORDS STORAGE,DDAT,RESTORE RECORDS MANAGEMENT,POIN2463,272.02
DBT,ACAS,29/02/2024,RECORDS STORAGE,DDAT,RESTORE RECORDS MANAGEMENT,POIN2463,129.53
DBT,ACAS,29/02/2024,PROFESSIONAL FEES,DDAT,TISSKI LTD,POIN2464,51300
DBT,ACAS,29/02/2024,PROFESSIONAL FEES,DDAT,TISSKI LTD,POIN2465,25650
DBT,ACAS,29/02/2024,PROFESSIONAL FEES,DDAT,TISSKI LTD,POIN2467,5400
DBT,ACAS,09/03/2024,MOBILE PHONES,DDAT,TELEFONICA UK LTD (O2),POIN2468,3060.06
DBT,ACAS,09/03/2024,MOBILE PHONES,DDAT,TELEFONICA UK LTD (O2),POIN2468,340.01
DBT,ACAS,29/02/2024,PROFESSIONAL FEES,DDAT,WYSER LTD,POIN2469,70248.59
DBT,ACAS,29/02/2024,PROFESSIONAL FEES,DDAT,WYSER LTD,POIN2469,16227.61
DBT,ACAS,29/02/2024,PROFESSIONAL FEES,DDAT,WYSER LTD,POIN2470,46569.76
DBT,ACAS,29/02/2024,PROFESSIONAL FEES,DDAT,WYSER LTD,POIN2470,19326.5
DBT,ACAS,07/03/2024,AGENCY STAFF,DISPUTE,ALEXANDER MANN SOLUTIONS LTD,POIN2471,1297.37
DBT,ACAS,11/03/2024,TRAINERS & GUEST SPEAKERS,DISPUTE,THINK PRODUCTIVE LTD,POIN2472,2551.8
DBT,ACAS,11/03/2024,SOFTWARE & LICENCES,DDAT,MENTIMETER AB,POIN2473,12375
DBT,ACAS,11/03/2024,SOFTWARE & LICENCES,DDAT,MENTIMETER AB,POIN2473,15
DBT,ACAS,01/03/2024,EXTERNAL LEARNING,ODHR,MCKENZIE HUMAN RESOURCES LLP,POIN2474,7140
DBT,ACAS,07/03/2024,CONTRACTOR OFF-PAYROLL IN IR35,DDAT,ALEXANDER MANN SOLUTIONS LTD,POIN2477,4095.36
DBT,ACAS,07/03/2024,CONTRACTOR OFF-PAYROLL IN IR35,DDAT,ALEXANDER MANN SOLUTIONS LTD,POIN2478,2646.24
DBT,ACAS,29/02/2024,AGENCY STAFF,DDAT,ALEXANDER MANN SOLUTIONS LTD,POIN2479,4311.48
DBT,ACAS,29/02/2024,PROFESSIONAL FEES,DDAT,TISSKI LTD,POIN2480,28350
DBT,ACAS,08/03/2024,PROFESSIONAL FEES,DDAT,GAMMA TELECOM LIMITED,POIN2481,4612.46
DBT,ACAS,27/02/2024,PROFESSIONAL FEES,DDAT,DATAQUEST GROUP LIMITED,POIN2483,10046.51
DBT,ACAS,01/03/2024,PROFESSIONAL FEES,DDAT,SIRIUS OPEN SOURCE LIMITED,POIN2484,2560.87
DBT,ACAS,06/03/2024,PROFESSIONAL FEES,DDAT,VERSION 1 SOLUTIONS LTD,POIN2485,6490
DBT,ACAS,06/03/2024,PROFESSIONAL FEES,DDAT,VERSION 1 SOLUTIONS LTD,POIN2485,213.9
DBT,ACAS,29/02/2024,PROFESSIONAL FEES,DDAT,TISSKI LTD,POIN2486,4200
DBT,ACAS,04/03/2024,PROFESSIONAL FEES,DDAT,W3 PARTNERSHIP LTD,POIN2487,3600
DBT,ACAS,04/03/2024,PROFESSIONAL FEES,DDAT,W3 PARTNERSHIP LTD,POIN2487,1137.88
DBT,ACAS,04/03/2024,PROFESSIONAL FEES,DDAT,W3 PARTNERSHIP LTD,POIN2487,35.56
DBT,ACAS,12/03/2024,STAFF RECRUITMENT COSTS,ODHR,CABINET OFFICE,POIN2490,1650
DBT,ACAS,07/03/2024,COMPUTER HARDWARE,DDAT,BALLICOM LIMITED,POIN2491,1380
DBT,ACAS,09/02/2024,OCCUPATIONAL HEALTH SERVICE,F&G,FLEXIFORM BUSINESS FURNITURE LTD,POIN2493,409.19
DBT,ACAS,28/02/2024,OCCUPATIONAL HEALTH SERVICE,F&G,FLEXIFORM BUSINESS FURNITURE LTD,POIN2494,409.19
DBT,ACAS,08/03/2024,OCCUPATIONAL HEALTH SERVICE,F&G,FLEXIFORM BUSINESS FURNITURE LTD,POIN2496,409.19
DBT,ACAS,08/03/2024,OCCUPATIONAL HEALTH SERVICE,F&G,FLEXIFORM BUSINESS FURNITURE LTD,POIN2497,409.19
DBT,ACAS,21/02/2024,OCCUPATIONAL HEALTH SERVICE,F&G,FLEXIFORM BUSINESS FURNITURE LTD,POIN2498,916.87
DBT,ACAS,07/03/2024,EXTERNAL LEARNING - CSL,ODHR,KPMG LLP,POIN2499,3600
DBT,ACAS,11/03/2024,COMPUTER HARDWARE,DDAT,BECHTLE LIMITED,POIN2500,486
DBT,ACAS,11/03/2024,COMPUTER HARDWARE,DDAT,BECHTLE LIMITED,POIN2500,54
DBT,ACAS,11/03/2024,COMPUTER HARDWARE,DDAT,BECHTLE LIMITED,POIN2500,162
DBT,ACAS,11/03/2024,COMPUTER HARDWARE,DDAT,BECHTLE LIMITED,POIN2500,18
DBT,ACAS,11/03/2024,PROFESSIONAL FEES,DDAT,BECHTLE LIMITED,POIN2500,1425
DBT,ACAS,11/03/2024,COURIERS,DDAT,BECHTLE LIMITED,POIN2500,1176
DBT,ACAS,11/03/2024,COURIERS,DDAT,BECHTLE LIMITED,POIN2500,7507.19
DBT,ACAS,11/03/2024,SYSTEM/EQUIPMENT MAINTENANCE,DDAT,BECHTLE LIMITED,POIN2500,143.22
DBT,ACAS,11/03/2024,COURIERS,DDAT,BECHTLE LIMITED,POIN2500,210
DBT,ACAS,13/03/2024,EXTERNAL LEARNING,ODHR,MEDIA TRAINING LTD,POIN2502,454.8
DBT,ACAS,13/03/2024,PROFESSIONAL FEES,DDAT,PANLOGIC LTD,POIN2508,20790
DBT,ACAS,20/12/2023,SOFTWARE & LICENCES,DDAT,REAL ASSET MANAGEMENT PLC,POIN2511,6972.74
DBT,ACAS,14/03/2024,CONTRACTOR OFF-PAYROLL IN IR35,STRATEGY,ALEXANDER MANN SOLUTIONS LTD,POIN2512,2771.68
DBT,ACAS,14/03/2024,AGENCY STAFF,DISPUTE,ALEXANDER MANN SOLUTIONS LTD,POIN2513,651.24
DBT,ACAS,14/03/2024,SOFTWARE & LICENCES,DDAT,RISUAL LIMITED,POIN2514,1080
DBT,ACAS,14/03/2024,AGENCY STAFF,ADVICE,ALEXANDER MANN SOLUTIONS LTD,POIN2515,648.68
DBT,ACAS,14/03/2024,CONTRACTOR OFF-PAYROLL IN IR35,DDAT,ALEXANDER MANN SOLUTIONS LTD,POIN2516,2646.24
DBT,ACAS,14/03/2024,CONTRACTOR OFF-PAYROLL IN IR35,DDAT,ALEXANDER MANN SOLUTIONS LTD,POIN2517,4300.5
DBT,ACAS,14/03/2024,CONTRACTOR OFF-PAYROLL IN IR35,DDAT,ALEXANDER MANN SOLUTIONS LTD,POIN2517,4300.5
DBT,ACAS,14/03/2024,NAO FEES,F&G,NATIONAL AUDIT OFFICE,POIN2518,34500
DBT,ACAS,02/03/2024,PUBLICITY,STRATEGY,CISION,POIN2520,2653
DBT,ACAS,02/03/2024,PUBLICITY,STRATEGY,CISION,POIN2520,83.58
DBT,ACAS,14/03/2024,EXTERNAL LEARNING,ODHR,ALEXANDER MANN SOLUTIONS LTD,POIN2521,35010.36
DBT,ACAS,13/03/2024,EXTERNAL LEARNING - CSL,ODHR,KPMG LLP,POIN2523,2984.4
DBT,ACAS,14/03/2024,AGENCY STAFF,DISPUTE,ALEXANDER MANN SOLUTIONS LTD,POIN2524,648.68
DBT,ACAS,15/03/2024,EVALUATION OF OPS ACTIVITIES,STRATEGY,NATIONAL CENTRE FOR SOCIAL RESEARCH,POIN2525,36000
DBT,ACAS,01/03/2024,PUBLICITY,STRATEGY,THE PRESS ASSOCIATION LTD,POIN2528,12773.4
DBT,ACAS,15/03/2024,SOFTWARE & LICENCES,DDAT,PHOENIX SOFTWARE LTD,POIN2531,8420.76
DBT,ACAS,15/03/2024,SOFTWARE & LICENCES,DDAT,PHOENIX SOFTWARE LTD,POIN2531,935.64
DBT,ACAS,14/03/2024,PROFESSIONAL FEES,DDAT,ASTEC ASSISTIVE TEC SOLUTIONS LTD,POIN2533,600
DBT,ACAS,14/03/2024,CONTRACTOR OFF-PAYROLL IN IR35,DDAT,ALEXANDER MANN SOLUTIONS LTD,POIN2534,2956.46
DBT,ACAS,14/03/2024,AGENCY STAFF,DDAT,ALEXANDER MANN SOLUTIONS LTD,POIN2535,4311.48
DBT,ACAS,18/03/2024,COURIERS,DDAT,BECHTLE LIMITED,POIN2536,1170.73
DBT,ACAS,18/03/2024,PROFESSIONAL FEES,DDAT,BECHTLE LIMITED,POIN2537,2362.5
DBT,ACAS,18/03/2024,COURIERS,DDAT,BECHTLE LIMITED,POIN2538,1033.33
DBT,ACAS,18/03/2024,PROFESSIONAL FEES,DDAT,BECHTLE LIMITED,POIN2539,529.42
DBT,ACAS,15/03/2024,COMPUTER HARDWARE,DDAT,DIGITAL DEVICES LIMITED,POIN2540,1422.43
DBT,ACAS,15/03/2024,COURIERS,DDAT,DIGITAL DEVICES LIMITED,POIN2540,7.2
DBT,ACAS,18/03/2024,CONTRACTOR OFF-PAYROLL IN IR35,ODHR,MICHAEL PAGE,POIN2541,4263.48
DBT,ACAS,15/03/2024,COMPUTER HARDWARE,F&G,BOTTOMLINE TECHNOLOGIES LTD,POIN2542,317.99
DBT,ACAS,15/03/2024,SOFTWARE & LICENCES,DDAT,ARTICULATE GLOBAL LLC,POIN2545,14667.78
DBT,ACAS,08/03/2024,EXTERNAL LEARNING,ODHR,PEOPLE RESULTS LTD,POIN2547,3000
DBT,ACAS,08/03/2024,EXTERNAL LEARNING,ODHR,PEOPLE RESULTS LTD,POIN2547,163.08
DBT,ACAS,17/03/2024,EXTERNAL LEARNING - CSL,ODHR,KPMG LLP,POIN2549,3540
DBT,ACAS,19/03/2024,COMPUTER HARDWARE,DDAT,DIGITAL DEVICES LIMITED,POIN2550,733.14
DBT,ACAS,19/03/2024,COURIERS,DDAT,DIGITAL DEVICES LIMITED,POIN2550,7.2
DBT,ACAS,18/03/2024,LEGAL FEES,ODHR,GOVERNMENT LEGAL DEPARTMENT,POIN2551,17281.16
DBT,ACAS,19/03/2024,PROFESSIONAL FEES,DDAT,DIGITAL ACCESSIBILITY CENTRE LTD,POIN2552,8100
DBT,ACAS,13/03/2024,OCCUPATIONAL HEALTH SERVICE,F&G,FLEXIFORM BUSINESS FURNITURE LTD,POIN2553,409.19
DBT,ACAS,15/03/2024,OCCUPATIONAL HEALTH SERVICE,F&G,FLEXIFORM BUSINESS FURNITURE LTD,POIN2554,409.19
DBT,ACAS,19/03/2024,PROFESSIONAL FEES,DDAT,PHOENIX SOFTWARE LTD,POIN2555,17298.25
DBT,ACAS,19/03/2024,PROFESSIONAL FEES,DDAT,PHOENIX SOFTWARE LTD,POIN2555,3270.11
DBT,ACAS,20/03/2024,PROFESSIONAL FEES,DDAT,BECHTLE LIMITED,POIN2558,349.4
DBT,ACAS,01/03/2024,PROFESSIONAL FEES,DDAT,MICROSOFT LIMITED,POIN2559,50420.4
DBT,ACAS,01/03/2024,PROFESSIONAL FEES,DDAT,MICROSOFT LIMITED,POIN2559,43200
DBT,ACAS,18/03/2024,LEGAL FEES,ODHR,GOVERNMENT LEGAL DEPARTMENT,POIN2563,933.12
DBT,ACAS,19/03/2024,EXTERNAL LEARNING,ODHR,PACIFIC BLUE SOLUTIONS LTD,POIN2566,2106
DBT,ACAS,18/03/2024,GOVT SOLICITORS FEES,CO,GOVERNMENT LEGAL DEPARTMENT,POIN2567,2170.08
DBT,ACAS,21/03/2024,EXTERNAL LEARNING - CSL,ODHR,ERNST & YOUNG LLP,POIN2568,2206.02
DBT,ACAS,21/03/2024,EXTERNAL LEARNING - CSL,ODHR,ERNST & YOUNG LLP,POIN2569,441.2
DBT,ACAS,15/02/2024,EXTERNAL LEARNING,ODHR,CIVIL SERVICE COLLEGE LIMITED,POIN2570,3600
DBT,ACAS,21/03/2024,PROFESSIONAL FEES,DDAT,UNIFY HOLDING UK 1 LIMITED,POIN2571,4930.79
DBT,ACAS,20/03/2024,SOFTWARE & LICENCES,DDAT,TRAMS LIMITED,POIN2572,2836.27
DBT,ACAS,21/03/2024,SOFTWARE & LICENCES,DDAT,UNIFY HOLDING UK 1 LIMITED,POIN2573,1912.9
DBT,ACAS,21/03/2024,SOFTWARE & LICENCES,DDAT,UNIFY HOLDING UK 1 LIMITED,POIN2573,2406
DBT,ACAS,21/03/2024,SOFTWARE & LICENCES,DDAT,UNIFY HOLDING UK 1 LIMITED,POIN2573,9917.25
DBT,ACAS,21/03/2024,TELEPHONES,DDAT,UNIFY HOLDING UK 1 LIMITED,POIN2573,102.01
DBT,ACAS,21/03/2024,AGENCY STAFF,DISPUTE,ALEXANDER MANN SOLUTIONS LTD,POIN2574,385.32
DBT,ACAS,21/03/2024,CONTRACTOR OFF-PAYROLL IN IR35,DDAT,ALEXANDER MANN SOLUTIONS LTD,POIN2575,8190.72
DBT,ACAS,21/03/2024,OTHER FEES TO OGD'S,STRATEGY,ALEXANDER MANN SOLUTIONS LTD,POIN2576,3079.62
DBT,ACAS,14/03/2024,OTHER FEES TO OGD'S,ADVICE,ALEXANDER MANN SOLUTIONS LTD,POIN2577,18901.8
DBT,ACAS,21/03/2024,AGENCY STAFF,DDAT,ALEXANDER MANN SOLUTIONS LTD,POIN2578,4311.48
DBT,ACAS,21/03/2024,EXTERNAL LEARNING - CSL,ODHR,ERNST & YOUNG LLP,POIN2579,638.4
DBT,ACAS,21/03/2024,CONTRACTOR OFF-PAYROLL IN IR35,DDAT,ALEXANDER MANN SOLUTIONS LTD,POIN2580,5912.93
DBT,ACAS,22/01/2024,OCCUPATIONAL HEALTH SERVICE,F&G,FLEXIFORM BUSINESS FURNITURE LTD,POIN2582,756
DBT,ACAS,22/03/2024,OTHER RESEARCH,STRATEGY,NATIONAL CENTRE FOR SOCIAL RESEARCH,POIN2583,20332.8
DBT,ACAS,22/03/2024,PROFESSIONAL FEES,DDAT,AXIS 12 LIMITED,POIN2584,12150
DBT,ACAS,21/03/2024,EXTERNAL LEARNING - CSL,ODHR,KPMG LLP,POIN2585,2984.4
DBT,ACAS,22/03/2024,PROFESSIONAL FEES,DDAT,TISSKI LTD,POIN2586,7534
DBT,ACAS,14/03/2024,PUBLICITY,STRATEGY,EMAILMOVERS LTD,POIN2587,29370.02
DBT,ACAS,22/03/2024,EXTERNAL LEARNING,ODHR,TCC LIMITED,POIN2588,594
DBT,ACAS,29/02/2024,VENUE HIRE (REC VAT),STRATEGY,ETC VENUES LIMITED,POIN2590,5400
DBT,ACAS,14/03/2024,EXTERNAL LEARNING,ODHR,TCC LIMITED,POIN2591,540
DBT,ACAS,21/03/2024,SOFTWARE & LICENCES,DDAT,RISUAL LIMITED,POIN2592,409.5
DBT,ACAS,21/03/2024,SOFTWARE & LICENCES,DDAT,RISUAL LIMITED,POIN2592,4504.5
DBT,ACAS,22/03/2024,EVALUATION OF OPS ACTIVITIES,STRATEGY,NATIONAL CENTRE FOR SOCIAL RESEARCH,POIN2593,36000
DBT,ACAS,22/03/2024,SOFTWARE & LICENCES,DDAT,MATRIX BOOKING LIMITED,POIN2594,6480
DBT,ACAS,22/03/2024,SOFTWARE & LICENCES,DDAT,MATRIX BOOKING LIMITED,POIN2594,720
DBT,ACAS,22/03/2024,SOFTWARE & LICENCES,DDAT,MATRIX BOOKING LIMITED,POIN2594,9745.92
DBT,ACAS,22/03/2024,SOFTWARE & LICENCES,DDAT,MATRIX BOOKING LIMITED,POIN2594,1082.88
DBT,ACAS,22/03/2024,SOFTWARE & LICENCES,DDAT,MATRIX BOOKING LIMITED,POIN2594,116.64
DBT,ACAS,22/03/2024,SOFTWARE & LICENCES,DDAT,MATRIX BOOKING LIMITED,POIN2594,12.96
DBT,ACAS,22/03/2024,PROFESSIONAL FEES,DDAT,MATRIX BOOKING LIMITED,POIN2594,14400
DBT,ACAS,21/03/2024,AGENCY STAFF,ADVICE,ALEXANDER MANN SOLUTIONS LTD,POIN2595,648.68
DBT,ACAS,25/03/2024,EVALUATION OF OPS ACTIVITIES,STRATEGY,NATIONAL CENTRE FOR SOCIAL RESEARCH,POIN2596,2410
DBT,ACAS,18/12/2023,PROFFESIONAL/SPECIALIST ADVICE,F&G,SERCO LIMITED,POIN2597,6762
DBT,ACAS,22/03/2024,EXTERNAL LEARNING,ODHR,J B NICHOLLS,POIN2600,3400
DBT,ACAS,22/03/2024,EXTERNAL LEARNING,ODHR,J B NICHOLLS,POIN2600,-3400
DBT,ACAS,25/03/2024,PROFFESIONAL/SPECIALIST ADVICE,STRATEGY,TOTAL CONFLICT MANAGEMENT LTD,POIN2601,1459.2
DBT,ACAS,25/03/2024,CONTRACTOR OFF-PAYROLL IN IR35,ODHR,MICHAEL PAGE,POIN2603,4263.48
DBT,ACAS,25/03/2024,OCCUPATIONAL HEALTH SERVICE,ODHR,TP HEALTH LTD,POIN2604,778.8
DBT,ACAS,26/01/2024,VENUE HIRE (REC VAT),DISPUTE,EEF LTD T/A MAKE UK,POIN2605,4255.2
DBT,ACAS,31/01/2024,VENUE HIRE (REC VAT),DISPUTE,EEF LTD T/A MAKE UK,POIN2606,1236.6
DBT,ACAS,31/01/2024,VENUE HIRE (REC VAT),DISPUTE,EEF LTD T/A MAKE UK,POIN2607,2313.24
DBT,ACAS,26/02/2024,VENUE HIRE (REC VAT),DISPUTE,PROFESSIONAL ENGINEERING PROJECTS LTD,POIN2608,1210
DBT,ACAS,26/02/2024,VENUE HIRE (REC VAT),DISPUTE,PROFESSIONAL ENGINEERING PROJECTS LTD,POIN2608,498
DBT,ACAS,09/01/2024,MEMBERSHIP FEES,DISPUTE,NORTH EAST CHAMBER OF COMMERCE,POIN2609,2754
DBT,ACAS,21/03/2024,EXTERNAL LEARNING,ODHR,KNOWLEDGE EXCHANGE GROUP LTD,POIN2610,390
DBT,ACAS,21/03/2024,EXTERNAL LEARNING,ODHR,KNOWLEDGE EXCHANGE GROUP LTD,POIN2610,48
DBT,ACAS,20/03/2024,EXTERNAL LEARNING,ODHR,ERNST & YOUNG LLP,POIN2611,1626.3
DBT,ACAS,11/03/2024,PROFESSIONAL FEES,DDAT,CONSENT KIT LTD,POIN2613,712.8
DBT,ACAS,30/11/2023,TRAINERS & GUEST SPEAKERS,ADVICE,IRWIN MITCHELL LLP,POIN2614,1200
DBT,ACAS,23/01/2024,TRAINERS & GUEST SPEAKERS,ADVICE,IRWIN MITCHELL LLP,POIN2615,1200
DBT,ACAS,23/01/2024,OCCUPATIONAL HEALTH SERVICE,F&G,FLEXIFORM BUSINESS FURNITURE LTD,POIN2616,409.19
DBT,ACAS,26/03/2024,EXTERNAL LEARNING,ODHR,NOUS GROUP (UK) LTD,POIN2617,11400
DBT,ACAS,19/03/2024,AGENCY STAFF,DDAT,BECHTLE LIMITED,POIN2619,1184.4
DBT,ACAS,19/03/2024,AGENCY STAFF,DDAT,BECHTLE LIMITED,POIN2619,1184.4
DBT,ACAS,19/03/2024,AGENCY STAFF,DDAT,BECHTLE LIMITED,POIN2619,1184.4
DBT,ACAS,19/03/2024,AGENCY STAFF,DDAT,BECHTLE LIMITED,POIN2619,8290.8
DBT,ACAS,19/03/2024,AGENCY STAFF,DDAT,BECHTLE LIMITED,POIN2619,7501.2
DBT,ACAS,19/03/2024,AGENCY STAFF,DDAT,BECHTLE LIMITED,POIN2619,5132.4
DBT,ACAS,19/03/2024,AGENCY STAFF,DDAT,BECHTLE LIMITED,POIN2619,3158.4
DBT,ACAS,19/03/2024,AGENCY STAFF,DDAT,BECHTLE LIMITED,POIN2619,789.6
DBT,ACAS,26/03/2024,PROFESSIONAL FEES,DDAT,AXIS 12 LIMITED,POIN2622,6300
DBT,ACAS,15/03/2024,EXTERNAL LEARNING,ADVICE,MINDSPRING CONSULTANCY LTD,POIN2624,2400
DBT,ACAS,26/03/2024,CATERING,ODHR,EEF LTD T/A MAKE UK,POIN2625,82.5
DBT,ACAS,26/03/2024,EXTERNAL LEARNING,ODHR,EEF LTD T/A MAKE UK,POIN2625,1560
DBT,ACAS,01/02/2024,PROFESSIONAL FEES,DDAT,FRONTIFY,POIN2626,2656.67
DBT,ACAS,29/02/2024,PROFESSIONAL FEES,ADVICE,LANGUAGE EMPIRE LTD,POIN2627,4191.56
DBT,ACAS,29/02/2024,PROFESSIONAL FEES,DISPUTE,LANGUAGE EMPIRE LTD,POIN2627,2056.49
DBT,ACAS,29/02/2024,PROFESSIONAL FEES,ADVICE,LANGUAGE EMPIRE LTD,POIN2628,540
DBT,ACAS,29/02/2024,PROFESSIONAL FEES,DISPUTE,LANGUAGE EMPIRE LTD,POIN2628,69.84
DBT,ACAS,26/03/2024,SOFTWARE & LICENCES,DDAT,PHOENIX SOFTWARE LTD,POIN2629,8420.76
DBT,ACAS,26/03/2024,SOFTWARE & LICENCES,DDAT,PHOENIX SOFTWARE LTD,POIN2629,935.64
DBT,ACAS,26/03/2024,PROFFESIONAL/SPECIALIST ADVICE,ADVICE,THE GROWTH COMPANY LIMITED,POIN2634,96000
DBT,ACAS,26/03/2024,HARDWARE ADDITIONS,DDAT,TIEVA UK LTD,POIN2645,15360
DBT,ACAS,26/03/2024,SYSTEM/EQUIPMENT MAINTENANCE,DDAT,TIEVA UK LTD,POIN2645,1242
DBT,ACAS,26/03/2024,SYSTEM/EQUIPMENT MAINTENANCE,DDAT,TIEVA UK LTD,POIN2645,138
DBT,ACAS,27/03/2024,SOFTWARE & LICENCES,DDAT,GOTO TECHNOLOGIES UK LTD,POIN2646,9720
DBT,ACAS,27/03/2024,COURIERS,DDAT,BECHTLE LIMITED,POIN2649,2250
DBT,ACAS,27/03/2024,PROFESSIONAL FEES,DDAT,BECHTLE LIMITED,POIN2650,375
DBT,ACAS,20/03/2024,OTHER RESEARCH,STRATEGY,WALNUT UNLIMITED LIMITED,POIN2651,13860
DBT,ACAS,20/03/2024,OTHER RESEARCH,STRATEGY,WALNUT UNLIMITED LIMITED,POIN2651,300
DBT,ACAS,19/03/2024,OTHER RESEARCH,STRATEGY,UNIVERSITY OF SOUTHAMPTON,POIN2652,1622
DBT,ACAS,27/03/2024,OTHER RESEARCH,STRATEGY,UNIVERSITY OF WARWICK,POIN2653,24000
DBT,ACAS,27/03/2024,EVALUATION OF OPS ACTIVITIES,STRATEGY,QUANT RESEARCH LTD,POIN2654,13140
DBT,ACAS,27/03/2024,PROFFESIONAL/SPECIALIST ADVICE,ADVICE,THE GROWTH COMPANY LIMITED,POIN2656,11988
DBT,ACAS,28/03/2024,OTHER RESEARCH,STRATEGY,UNIVERSITY OF WARWICK,POIN2658,15318
DBT,ACAS,22/02/2024,EXTERNAL LEARNING - CSL,ODHR,KPMG LLP,POIN2663,3540
DBT,ACAS,14/09/2023,OTHER FEES TO OGD'S,ODHR,MYCSP LTD,POIN2666,1622.15
DBT,ACAS,28/03/2024,PROFESSIONAL FEES,DDAT,DIGITAL ACCESSIBILITY CENTRE LTD,POIN2673,7290
DBT,ACAS,28/03/2024,PROFESSIONAL FEES,DDAT,CARBON FOOTPRINT,POIN2674,2340
DBT,ACAS,28/03/2024,PROFESSIONAL FEES,DDAT,CARBON FOOTPRINT,POIN2674,2550
DBT,ACAS,28/03/2024,CONTRACTOR OFF-PAYROLL IN IR35,DDAT,ALEXANDER MANN SOLUTIONS LTD,POIN2678,4095.36
DBT,ACAS,28/03/2024,PROFESSIONAL FEES,DDAT,BECHTLE LIMITED,POIN2679,9060
DBT,ACAS,28/03/2024,OTHER FEES TO OGD'S,STRATEGY,ALEXANDER MANN SOLUTIONS LTD,POIN2680,3079.62
DBT,ACAS,04/03/2024,PERSONAL EXPENSE,ADVICE,NAME / DESCRIPTION WITHHELD,EXPS3167,166.05
DBT,ACAS,04/03/2024,PERSONAL EXPENSE,ADVICE,NAME / DESCRIPTION WITHHELD,EXPS3167,0.5
DBT,ACAS,04/03/2024,PERSONAL EXPENSE,ADVICE,NAME / DESCRIPTION WITHHELD,EXPS3167,45
DBT,ACAS,04/03/2024,PERSONAL EXPENSE,ADVICE,NAME / DESCRIPTION WITHHELD,EXPS3167,15
DBT,ACAS,04/03/2024,PERSONAL EXPENSE,ADVICE,NAME / DESCRIPTION WITHHELD,EXPS3167,25
DBT,ACAS,04/03/2024,PERSONAL EXPENSE,ADVICE,NAME / DESCRIPTION WITHHELD,EXPS3167,105
DBT,ACAS,05/03/2024,PERSONAL EXPENSE,ADVICE,NAME / DESCRIPTION WITHHELD,EXPS3169,329.4
DBT,ACAS,05/03/2024,PERSONAL EXPENSE,ADVICE,NAME / DESCRIPTION WITHHELD,EXPS3169,5.4
DBT,ACAS,05/03/2024,PERSONAL EXPENSE,ADVICE,NAME / DESCRIPTION WITHHELD,EXPS3169,10
DBT,ACAS,05/03/2024,PERSONAL EXPENSE,ADVICE,NAME / DESCRIPTION WITHHELD,EXPS3169,20
DBT,ACAS,05/03/2024,PERSONAL EXPENSE,ADVICE,NAME / DESCRIPTION WITHHELD,EXPS3169,5
DBT,ACAS,05/03/2024,PERSONAL EXPENSE,ADVICE,NAME / DESCRIPTION WITHHELD,EXPS3169,35
DBT,ACAS,04/03/2024,PERSONAL EXPENSE,F&G,NAME / DESCRIPTION WITHHELD,EXPS3174,21.4
DBT,ACAS,04/03/2024,PERSONAL EXPENSE,F&G,NAME / DESCRIPTION WITHHELD,EXPS3174,21.4
DBT,ACAS,04/03/2024,PERSONAL EXPENSE,F&G,NAME / DESCRIPTION WITHHELD,EXPS3174,50
DBT,ACAS,04/03/2024,PERSONAL EXPENSE,F&G,NAME / DESCRIPTION WITHHELD,EXPS3174,20
DBT,ACAS,04/03/2024,PERSONAL EXPENSE,F&G,NAME / DESCRIPTION WITHHELD,EXPS3174,20
DBT,ACAS,04/03/2024,PERSONAL EXPENSE,F&G,NAME / DESCRIPTION WITHHELD,EXPS3174,10
DBT,ACAS,04/03/2024,PERSONAL EXPENSE,F&G,NAME / DESCRIPTION WITHHELD,EXPS3174,15
DBT,ACAS,04/03/2024,PERSONAL EXPENSE,F&G,NAME / DESCRIPTION WITHHELD,EXPS3174,105
DBT,ACAS,05/03/2024,PERSONAL EXPENSE,F&G,NAME / DESCRIPTION WITHHELD,EXPS3176,95.5
DBT,ACAS,05/03/2024,PERSONAL EXPENSE,F&G,NAME / DESCRIPTION WITHHELD,EXPS3176,40
DBT,ACAS,05/03/2024,PERSONAL EXPENSE,F&G,NAME / DESCRIPTION WITHHELD,EXPS3176,30
DBT,ACAS,05/03/2024,PERSONAL EXPENSE,F&G,NAME / DESCRIPTION WITHHELD,EXPS3176,10
DBT,ACAS,05/03/2024,PERSONAL EXPENSE,F&G,NAME / DESCRIPTION WITHHELD,EXPS3176,70
DBT,ACAS,05/03/2024,PERSONAL EXPENSE,F&G,NAME / DESCRIPTION WITHHELD,EXPS3176,70
DBT,ACAS,05/03/2024,PERSONAL EXPENSE,ADVICE,NAME / DESCRIPTION WITHHELD,EXPS3182,262.8
DBT,ACAS,05/03/2024,PERSONAL EXPENSE,ADVICE,NAME / DESCRIPTION WITHHELD,EXPS3182,25
DBT,ACAS,05/03/2024,PERSONAL EXPENSE,ADVICE,NAME / DESCRIPTION WITHHELD,EXPS3182,10
DBT,ACAS,06/03/2024,PERSONAL EXPENSE,ADVICE,NAME / DESCRIPTION WITHHELD,EXPS3184,223.2
DBT,ACAS,06/03/2024,PERSONAL EXPENSE,ADVICE,NAME / DESCRIPTION WITHHELD,EXPS3184,3.3
DBT,ACAS,06/03/2024,PERSONAL EXPENSE,ADVICE,NAME / DESCRIPTION WITHHELD,EXPS3184,3.4
DBT,ACAS,06/03/2024,PERSONAL EXPENSE,ADVICE,NAME / DESCRIPTION WITHHELD,EXPS3184,40
DBT,ACAS,06/03/2024,PERSONAL EXPENSE,ADVICE,NAME / DESCRIPTION WITHHELD,EXPS3184,15
DBT,ACAS,06/03/2024,PERSONAL EXPENSE,ADVICE,NAME / DESCRIPTION WITHHELD,EXPS3184,20
DBT,ACAS,06/03/2024,PERSONAL EXPENSE,ADVICE,NAME / DESCRIPTION WITHHELD,EXPS3184,105
DBT,ACAS,08/03/2024,PERSONAL EXPENSE,STRATEGY,NAME / DESCRIPTION WITHHELD,EXPS3196,27
DBT,ACAS,08/03/2024,PERSONAL EXPENSE,STRATEGY,NAME / DESCRIPTION WITHHELD,EXPS3196,8
DBT,ACAS,08/03/2024,PERSONAL EXPENSE,STRATEGY,NAME / DESCRIPTION WITHHELD,EXPS3196,2.7
DBT,ACAS,08/03/2024,PERSONAL EXPENSE,STRATEGY,NAME / DESCRIPTION WITHHELD,EXPS3196,5
DBT,ACAS,08/03/2024,PERSONAL EXPENSE,STRATEGY,NAME / DESCRIPTION WITHHELD,EXPS3196,35
DBT,ACAS,08/03/2024,PERSONAL EXPENSE,STRATEGY,NAME / DESCRIPTION WITHHELD,EXPS3196,10
DBT,ACAS,08/03/2024,PERSONAL EXPENSE,STRATEGY,NAME / DESCRIPTION WITHHELD,EXPS3196,6.7
DBT,ACAS,08/03/2024,PERSONAL EXPENSE,STRATEGY,NAME / DESCRIPTION WITHHELD,EXPS3196,25.03
DBT,ACAS,08/03/2024,PERSONAL EXPENSE,STRATEGY,NAME / DESCRIPTION WITHHELD,EXPS3196,10
DBT,ACAS,08/03/2024,PERSONAL EXPENSE,STRATEGY,NAME / DESCRIPTION WITHHELD,EXPS3196,8.2
DBT,ACAS,08/03/2024,PERSONAL EXPENSE,STRATEGY,NAME / DESCRIPTION WITHHELD,EXPS3196,2.8
DBT,ACAS,08/03/2024,PERSONAL EXPENSE,STRATEGY,NAME / DESCRIPTION WITHHELD,EXPS3196,5
DBT,ACAS,08/03/2024,PERSONAL EXPENSE,STRATEGY,NAME / DESCRIPTION WITHHELD,EXPS3196,35
DBT,ACAS,08/03/2024,PERSONAL EXPENSE,STRATEGY,NAME / DESCRIPTION WITHHELD,EXPS3196,10
DBT,ACAS,08/03/2024,PERSONAL EXPENSE,STRATEGY,NAME / DESCRIPTION WITHHELD,EXPS3196,10
DBT,ACAS,08/03/2024,PERSONAL EXPENSE,STRATEGY,NAME / DESCRIPTION WITHHELD,EXPS3196,2.8
DBT,ACAS,08/03/2024,PERSONAL EXPENSE,STRATEGY,NAME / DESCRIPTION WITHHELD,EXPS3196,5
DBT,ACAS,08/03/2024,PERSONAL EXPENSE,STRATEGY,NAME / DESCRIPTION WITHHELD,EXPS3196,35
DBT,ACAS,08/03/2024,PERSONAL EXPENSE,STRATEGY,NAME / DESCRIPTION WITHHELD,EXPS3196,10
DBT,ACAS,07/03/2024,PERSONAL EXPENSE,ADVICE,NAME / DESCRIPTION WITHHELD,EXPS3201,161.2
DBT,ACAS,07/03/2024,PERSONAL EXPENSE,ADVICE,NAME / DESCRIPTION WITHHELD,EXPS3201,8
DBT,ACAS,07/03/2024,PERSONAL EXPENSE,ADVICE,NAME / DESCRIPTION WITHHELD,EXPS3201,25
DBT,ACAS,07/03/2024,PERSONAL EXPENSE,ADVICE,NAME / DESCRIPTION WITHHELD,EXPS3201,25
DBT,ACAS,07/03/2024,PERSONAL EXPENSE,ADVICE,NAME / DESCRIPTION WITHHELD,EXPS3201,30
DBT,ACAS,07/03/2024,PERSONAL EXPENSE,ADVICE,NAME / DESCRIPTION WITHHELD,EXPS3201,40
DBT,ACAS,07/03/2024,PERSONAL EXPENSE,ADVICE,NAME / DESCRIPTION WITHHELD,EXPS3201,175
DBT,ACAS,11/03/2024,PERSONAL EXPENSE,ADVICE,NAME / DESCRIPTION WITHHELD,EXPS3210,347.4
DBT,ACAS,11/03/2024,PERSONAL EXPENSE,ADVICE,NAME / DESCRIPTION WITHHELD,EXPS3210,17
DBT,ACAS,11/03/2024,PERSONAL EXPENSE,ADVICE,NAME / DESCRIPTION WITHHELD,EXPS3210,18
DBT,ACAS,11/03/2024,PERSONAL EXPENSE,ADVICE,NAME / DESCRIPTION WITHHELD,EXPS3210,40
DBT,ACAS,11/03/2024,PERSONAL EXPENSE,ADVICE,NAME / DESCRIPTION WITHHELD,EXPS3210,10
DBT,ACAS,11/03/2024,PERSONAL EXPENSE,ADVICE,NAME / DESCRIPTION WITHHELD,EXPS3210,40
DBT,ACAS,11/03/2024,PERSONAL EXPENSE,ADVICE,NAME / DESCRIPTION WITHHELD,EXPS3211,48.6
DBT,ACAS,11/03/2024,PERSONAL EXPENSE,ADVICE,NAME / DESCRIPTION WITHHELD,EXPS3211,5
DBT,ACAS,11/03/2024,PERSONAL EXPENSE,ADVICE,NAME / DESCRIPTION WITHHELD,EXPS3211,243.9
DBT,ACAS,11/03/2024,PERSONAL EXPENSE,ADVICE,NAME / DESCRIPTION WITHHELD,EXPS3211,30
DBT,ACAS,11/03/2024,PERSONAL EXPENSE,ADVICE,NAME / DESCRIPTION WITHHELD,EXPS3211,42
DBT,ACAS,11/03/2024,PERSONAL EXPENSE,ADVICE,NAME / DESCRIPTION WITHHELD,EXPS3211,25
DBT,ACAS,11/03/2024,PERSONAL EXPENSE,ADVICE,NAME / DESCRIPTION WITHHELD,EXPS3211,50
DBT,ACAS,11/03/2024,PERSONAL EXPENSE,ADVICE,NAME / DESCRIPTION WITHHELD,EXPS3211,175
DBT,ACAS,11/03/2024,PERSONAL EXPENSE,ADVICE,NAME / DESCRIPTION WITHHELD,EXPS3217,75.45
DBT,ACAS,11/03/2024,PERSONAL EXPENSE,ADVICE,NAME / DESCRIPTION WITHHELD,EXPS3217,54
DBT,ACAS,11/03/2024,PERSONAL EXPENSE,ADVICE,NAME / DESCRIPTION WITHHELD,EXPS3217,3.5
DBT,ACAS,11/03/2024,PERSONAL EXPENSE,ADVICE,NAME / DESCRIPTION WITHHELD,EXPS3217,20
DBT,ACAS,11/03/2024,PERSONAL EXPENSE,ADVICE,NAME / DESCRIPTION WITHHELD,EXPS3217,70
DBT,ACAS,11/03/2024,PERSONAL EXPENSE,ADVICE,NAME / DESCRIPTION WITHHELD,EXPS3217,30
DBT,ACAS,11/03/2024,PERSONAL EXPENSE,ADVICE,NAME / DESCRIPTION WITHHELD,EXPS3217,10
DBT,ACAS,14/03/2024,PERSONAL EXPENSE,STRATEGY,NAME / DESCRIPTION WITHHELD,EXPS3228,10.8
DBT,ACAS,14/03/2024,PERSONAL EXPENSE,STRATEGY,NAME / DESCRIPTION WITHHELD,EXPS3228,5.4
DBT,ACAS,14/03/2024,PERSONAL EXPENSE,STRATEGY,NAME / DESCRIPTION WITHHELD,EXPS3228,108
DBT,ACAS,14/03/2024,PERSONAL EXPENSE,STRATEGY,NAME / DESCRIPTION WITHHELD,EXPS3228,86
DBT,ACAS,14/03/2024,PERSONAL EXPENSE,STRATEGY,NAME / DESCRIPTION WITHHELD,EXPS3228,4.58
DBT,ACAS,14/03/2024,PERSONAL EXPENSE,STRATEGY,NAME / DESCRIPTION WITHHELD,EXPS3228,5
DBT,ACAS,14/03/2024,PERSONAL EXPENSE,STRATEGY,NAME / DESCRIPTION WITHHELD,EXPS3228,35
DBT,ACAS,14/03/2024,PERSONAL EXPENSE,STRATEGY,NAME / DESCRIPTION WITHHELD,EXPS3228,25
DBT,ACAS,14/03/2024,PERSONAL EXPENSE,STRATEGY,NAME / DESCRIPTION WITHHELD,EXPS3228,20
DBT,ACAS,14/03/2024,PERSONAL EXPENSE,STRATEGY,NAME / DESCRIPTION WITHHELD,EXPS3228,20
DBT,ACAS,14/03/2024,PERSONAL EXPENSE,STRATEGY,NAME / DESCRIPTION WITHHELD,EXPS3228,40
DBT,ACAS,14/03/2024,PERSONAL EXPENSE,F&G,NAME / DESCRIPTION WITHHELD,EXPS3233,40
DBT,ACAS,14/03/2024,PERSONAL EXPENSE,F&G,NAME / DESCRIPTION WITHHELD,EXPS3233,31.72
DBT,ACAS,14/03/2024,PERSONAL EXPENSE,F&G,NAME / DESCRIPTION WITHHELD,EXPS3233,20
DBT,ACAS,14/03/2024,PERSONAL EXPENSE,F&G,NAME / DESCRIPTION WITHHELD,EXPS3233,140
DBT,ACAS,14/03/2024,PERSONAL EXPENSE,F&G,NAME / DESCRIPTION WITHHELD,EXPS3233,20
DBT,ACAS,18/03/2024,PERSONAL EXPENSE,DISPUTE,NAME / DESCRIPTION WITHHELD,EXPS3234,269.1
DBT,ACAS,18/03/2024,PERSONAL EXPENSE,DISPUTE,NAME / DESCRIPTION WITHHELD,EXPS3234,12
DBT,ACAS,18/03/2024,PERSONAL EXPENSE,DISPUTE,NAME / DESCRIPTION WITHHELD,EXPS3234,5
DBT,ACAS,18/03/2024,PERSONAL EXPENSE,DISPUTE,NAME / DESCRIPTION WITHHELD,EXPS3234,35
DBT,ACAS,19/03/2024,PERSONAL EXPENSE,ADVICE,NAME / DESCRIPTION WITHHELD,EXPS3241,316.35
DBT,ACAS,19/03/2024,PERSONAL EXPENSE,ADVICE,NAME / DESCRIPTION WITHHELD,EXPS3241,60
DBT,ACAS,19/03/2024,PERSONAL EXPENSE,ADVICE,NAME / DESCRIPTION WITHHELD,EXPS3241,40
DBT,ACAS,19/03/2024,PERSONAL EXPENSE,ADVICE,NAME / DESCRIPTION WITHHELD,EXPS3241,10
DBT,ACAS,19/03/2024,PERSONAL EXPENSE,ADVICE,NAME / DESCRIPTION WITHHELD,EXPS3241,2
DBT,ACAS,22/03/2024,PERSONAL EXPENSE,DISPUTE,NAME / DESCRIPTION WITHHELD,EXPS3260,114.3
DBT,ACAS,22/03/2024,PERSONAL EXPENSE,DISPUTE,NAME / DESCRIPTION WITHHELD,EXPS3260,45
DBT,ACAS,22/03/2024,PERSONAL EXPENSE,DISPUTE,NAME / DESCRIPTION WITHHELD,EXPS3260,40
DBT,ACAS,22/03/2024,PERSONAL EXPENSE,DISPUTE,NAME / DESCRIPTION WITHHELD,EXPS3260,10
DBT,ACAS,22/03/2024,PERSONAL EXPENSE,DISPUTE,NAME / DESCRIPTION WITHHELD,EXPS3260,20
DBT,ACAS,22/03/2024,PERSONAL EXPENSE,DISPUTE,NAME / DESCRIPTION WITHHELD,EXPS3260,280
DBT,ACAS,22/03/2024,PERSONAL EXPENSE,DISPUTE,NAME / DESCRIPTION WITHHELD,EXPS3260,30
DBT,ACAS,25/03/2024,PERSONAL EXPENSE,ADVICE,NAME / DESCRIPTION WITHHELD,EXPS3277,80.31
DBT,ACAS,25/03/2024,PERSONAL EXPENSE,ADVICE,NAME / DESCRIPTION WITHHELD,EXPS3277,25
DBT,ACAS,25/03/2024,PERSONAL EXPENSE,ADVICE,NAME / DESCRIPTION WITHHELD,EXPS3277,20
DBT,ACAS,25/03/2024,PERSONAL EXPENSE,ADVICE,NAME / DESCRIPTION WITHHELD,EXPS3277,140
DBT,ACAS,25/03/2024,PERSONAL EXPENSE,ADVICE,NAME / DESCRIPTION WITHHELD,EXPS3277,30
DBT,ACAS,25/03/2024,PERSONAL EXPENSE,ADVICE,NAME / DESCRIPTION WITHHELD,EXPS3277,30
DBT,ACAS,26/03/2024,PERSONAL EXPENSE,ADVICE,NAME / DESCRIPTION WITHHELD,EXPS3284,28
DBT,ACAS,26/03/2024,PERSONAL EXPENSE,ADVICE,NAME / DESCRIPTION WITHHELD,EXPS3284,30
DBT,ACAS,26/03/2024,PERSONAL EXPENSE,ADVICE,NAME / DESCRIPTION WITHHELD,EXPS3284,210
DBT,ACAS,26/03/2024,PERSONAL EXPENSE,ADVICE,NAME / DESCRIPTION WITHHELD,EXPS3284,10
DBT,ACAS,26/03/2024,PERSONAL EXPENSE,ODHR,NAME / DESCRIPTION WITHHELD,EXPS3285,30
DBT,ACAS,26/03/2024,PERSONAL EXPENSE,ODHR,NAME / DESCRIPTION WITHHELD,EXPS3285,20
DBT,ACAS,26/03/2024,PERSONAL EXPENSE,ODHR,NAME / DESCRIPTION WITHHELD,EXPS3285,20
DBT,ACAS,26/03/2024,PERSONAL EXPENSE,ODHR,NAME / DESCRIPTION WITHHELD,EXPS3285,25
DBT,ACAS,26/03/2024,PERSONAL EXPENSE,ODHR,NAME / DESCRIPTION WITHHELD,EXPS3285,210
DBT,ACAS,26/03/2024,PERSONAL EXPENSE,ODHR,NAME / DESCRIPTION WITHHELD,EXPS3285,10
DBT,ACAS,26/03/2024,PERSONAL EXPENSE,ODHR,NAME / DESCRIPTION WITHHELD,EXPS3285,5.2
DBT,ACAS,26/03/2024,PERSONAL EXPENSE,ODHR,NAME / DESCRIPTION WITHHELD,EXPS3285,0.59
DBT,ACAS,27/03/2024,PERSONAL EXPENSE,ADVICE,NAME / DESCRIPTION WITHHELD,EXPS3297,91.8
DBT,ACAS,27/03/2024,PERSONAL EXPENSE,ADVICE,NAME / DESCRIPTION WITHHELD,EXPS3297,10
DBT,ACAS,27/03/2024,PERSONAL EXPENSE,ADVICE,NAME / DESCRIPTION WITHHELD,EXPS3297,70
DBT,ACAS,27/03/2024,PERSONAL EXPENSE,ADVICE,NAME / DESCRIPTION WITHHELD,EXPS3297,20
DBT,ACAS,27/03/2024,PERSONAL EXPENSE,ADVICE,NAME / DESCRIPTION WITHHELD,EXPS3297,5
DBT,ACAS,27/03/2024,PERSONAL EXPENSE,ADVICE,NAME / DESCRIPTION WITHHELD,EXPS3297,35
DBT,ACAS,27/03/2024,PERSONAL EXPENSE,ADVICE,NAME / DESCRIPTION WITHHELD,EXPS3297,10
DBT,ACAS,27/03/2024,PERSONAL EXPENSE,ADVICE,NAME / DESCRIPTION WITHHELD,EXPS3297,10
DBT,ACAS,27/03/2024,PERSONAL EXPENSE,ADVICE,NAME / DESCRIPTION WITHHELD,EXPS3297,5
DBT,ACAS,27/03/2024,PERSONAL EXPENSE,ADVICE,NAME / DESCRIPTION WITHHELD,EXPS3297,35
DBT,ACAS,27/03/2024,PERSONAL EXPENSE,ADVICE,NAME / DESCRIPTION WITHHELD,EXPS3297,10
DBT,ACAS,27/03/2024,PERSONAL EXPENSE,DDAT,NAME / DESCRIPTION WITHHELD,EXPS3305,395.4
DBT,ACAS,27/03/2024,PERSONAL EXPENSE,DDAT,NAME / DESCRIPTION WITHHELD,EXPS3305,2.8
DBT,ACAS,27/03/2024,PERSONAL EXPENSE,DDAT,NAME / DESCRIPTION WITHHELD,EXPS3305,25
DBT,ACAS,27/03/2024,PERSONAL EXPENSE,DDAT,NAME / DESCRIPTION WITHHELD,EXPS3305,175
DBT,ACAS,27/03/2024,PERSONAL EXPENSE,DDAT,NAME / DESCRIPTION WITHHELD,EXPS3305,5
DBT,ACAS,27/03/2024,PERSONAL EXPENSE,DDAT,NAME / DESCRIPTION WITHHELD,EXPS3305,10
DBT,ACAS,27/03/2024,PERSONAL EXPENSE,DDAT,NAME / DESCRIPTION WITHHELD,EXPS3305,25
DBT,ACAS,28/03/2024,PERSONAL EXPENSE,ADVICE,NAME / DESCRIPTION WITHHELD,EXPS3310,177.75
DBT,ACAS,28/03/2024,PERSONAL EXPENSE,ADVICE,NAME / DESCRIPTION WITHHELD,EXPS3310,45
DBT,ACAS,28/03/2024,PERSONAL EXPENSE,ADVICE,NAME / DESCRIPTION WITHHELD,EXPS3310,26.2
DBT,ACAS,28/03/2024,PERSONAL EXPENSE,ADVICE,NAME / DESCRIPTION WITHHELD,EXPS3310,5
DBT,ACAS,28/03/2024,PERSONAL EXPENSE,ADVICE,NAME / DESCRIPTION WITHHELD,EXPS3310,35
DBT,ACAS,28/03/2024,PERSONAL EXPENSE,ADVICE,NAME / DESCRIPTION WITHHELD,EXPS3310,50
DBT,ACAS,28/03/2024,PERSONAL EXPENSE,ADVICE,NAME / DESCRIPTION WITHHELD,EXPS3310,10
DBT,ACAS,28/03/2024,PERSONAL EXPENSE,ADVICE,NAME / DESCRIPTION WITHHELD,EXPS3310,10
DBT,ACAS,28/03/2024,PERSONAL EXPENSE,ADVICE,NAME / DESCRIPTION WITHHELD,EXPS3313,285.75
DBT,ACAS,28/03/2024,PERSONAL EXPENSE,ADVICE,NAME / DESCRIPTION WITHHELD,EXPS3313,10.4
DBT,ACAS,28/03/2024,PERSONAL EXPENSE,ADVICE,NAME / DESCRIPTION WITHHELD,EXPS3313,17.3
DBT,ACAS,28/03/2024,PERSONAL EXPENSE,ADVICE,NAME / DESCRIPTION WITHHELD,EXPS3313,20
DBT,ACAS,28/03/2024,PERSONAL EXPENSE,ADVICE,NAME / DESCRIPTION WITHHELD,EXPS3313,5
DBT,ACAS,28/03/2024,PERSONAL EXPENSE,ADVICE,NAME / DESCRIPTION WITHHELD,EXPS3313,10
DBT,ACAS,28/03/2024,PERSONAL EXPENSE,DISPUTE,NAME / DESCRIPTION WITHHELD,EXPS3317,100.83
DBT,ACAS,28/03/2024,PERSONAL EXPENSE,DISPUTE,NAME / DESCRIPTION WITHHELD,EXPS3317,20
DBT,ACAS,28/03/2024,PERSONAL EXPENSE,DISPUTE,NAME / DESCRIPTION WITHHELD,EXPS3317,140
DBT,ACAS,28/03/2024,PERSONAL EXPENSE,DISPUTE,NAME / DESCRIPTION WITHHELD,EXPS3317,40
DBT,ACAS,28/03/2024,PERSONAL EXPENSE,DISPUTE,NAME / DESCRIPTION WITHHELD,EXPS3317,5
DBT,ACAS,28/03/2024,PERSONAL EXPENSE,DISPUTE,NAME / DESCRIPTION WITHHELD,EXPS3317,35
DBT,ACAS,28/03/2024,PERSONAL EXPENSE,DISPUTE,NAME / DESCRIPTION WITHHELD,EXPS3317,10
DBT,ACAS,28/03/2024,PERSONAL EXPENSE,ADVICE,NAME / DESCRIPTION WITHHELD,EXPS3318,46.35
DBT,ACAS,28/03/2024,PERSONAL EXPENSE,ADVICE,NAME / DESCRIPTION WITHHELD,EXPS3318,10.8
DBT,ACAS,28/03/2024,PERSONAL EXPENSE,ADVICE,NAME / DESCRIPTION WITHHELD,EXPS3318,69.3
DBT,ACAS,28/03/2024,PERSONAL EXPENSE,ADVICE,NAME / DESCRIPTION WITHHELD,EXPS3318,38.8
DBT,ACAS,28/03/2024,PERSONAL EXPENSE,ADVICE,NAME / DESCRIPTION WITHHELD,EXPS3318,25.8
DBT,ACAS,28/03/2024,PERSONAL EXPENSE,ADVICE,NAME / DESCRIPTION WITHHELD,EXPS3318,5
DBT,ACAS,28/03/2024,PERSONAL EXPENSE,ADVICE,NAME / DESCRIPTION WITHHELD,EXPS3318,35
DBT,ACAS,28/03/2024,PERSONAL EXPENSE,ADVICE,NAME / DESCRIPTION WITHHELD,EXPS3318,10
DBT,ACAS,28/03/2024,PERSONAL EXPENSE,ADVICE,NAME / DESCRIPTION WITHHELD,EXPS3318,5
DBT,ACAS,28/03/2024,PERSONAL EXPENSE,ADVICE,NAME / DESCRIPTION WITHHELD,EXPS3318,35
DBT,ACAS,28/03/2024,PERSONAL EXPENSE,ADVICE,NAME / DESCRIPTION WITHHELD,EXPS3318,10
DBT,ACAS,28/03/2024,PERSONAL EXPENSE,ADVICE,NAME / DESCRIPTION WITHHELD,EXPS3321,68.4
DBT,ACAS,28/03/2024,PERSONAL EXPENSE,ADVICE,NAME / DESCRIPTION WITHHELD,EXPS3321,3.6
DBT,ACAS,28/03/2024,PERSONAL EXPENSE,ADVICE,NAME / DESCRIPTION WITHHELD,EXPS3321,20.7
DBT,ACAS,28/03/2024,PERSONAL EXPENSE,ADVICE,NAME / DESCRIPTION WITHHELD,EXPS3321,272.25
DBT,ACAS,28/03/2024,PERSONAL EXPENSE,ADVICE,NAME / DESCRIPTION WITHHELD,EXPS3321,7.2
DBT,ACAS,28/03/2024,PERSONAL EXPENSE,ADVICE,NAME / DESCRIPTION WITHHELD,EXPS3321,15
DBT,ACAS,28/03/2024,PERSONAL EXPENSE,ADVICE,NAME / DESCRIPTION WITHHELD,EXPS3321,10
